Workbook

Sheet Sheet1
A1: 120123 | B1: 15 | C1: 0 | D1: 3 | E1: 19.1 | F1: 14 | G1: -9.2 | H1: 908.5 | I1: 5 | J1: 286 | K1: 16 | L1: 0 | M1: 0 | N1: 0 | O1: 19.7 | P1: 15 | Q1: -7.5 | R1: 19.1 | S1: 14 | T1: -9.3 | U1: 908.5 | V1: 19.7 | W1: 15 | X1: -7.9 | Y1: 19.3 | Z1: 18.5 | AA1: 6.4 | AB1: 52.4 | AD1: Time and Date | AE1: Temperature | AF1: Humidity | AG1: Dew Point | AH1: Pressure
A2: 120123 | B2: 15 | C2: 0 | D2: 8 | E2: 19.1 | F2: 14 | G2: -9.4 | H2: 908.5 | I2: 5 | J2: 286 | K2: 16 | L2: 0 | M2: 0 | N2: 0 | O2: 19.7 | P2: 15 | Q2: -7.3 | R2: 19.1 | S2: 14 | T2: -9.3 | U2: 908.5 | V2: 19.7 | W2: 15 | X2: -7.9 | Y2: 19.3 | Z2: 18.5 | AA2: 6.4 | AB2: 52.4 | AD2: 2012-01-23T15:00:00 | AE2: =AVERAGE(E1:E720) -> 18.54083333 | AF2: =AVERAGE(F1:F720) -> 14.51111111 | AG2: -9.003888889 | AH2: 906.9380556
A3: 120123 | B3: 15 | C3: 0 | D3: 14 | E3: 19.1 | F3: 13 | G3: -9.6 | H3: 908.5 | I3: 5 | J3: 286 | K3: 16 | L3: 0 | M3: 0 | N3: 0 | O3: 19.7 | P3: 15 | Q3: -7.3 | R3: 19.1 | S3: 14 | T3: -9.3 | U3: 908.5 | V3: 19.7 | W3: 15 | X3: -7.9 | Y3: 19.3 | Z3: 18.5 | AA3: 6.4 | AB3: 52.4 | AD3: 2012-01-23T16:00:00 | AE3: =AVERAGE(E721:E1440) -> 18.00986111 | AF3: =AVERAGE(F721:F1440) -> 15.69305556 | AG3: -8.450694444 | AH3: 906.4404167
A4: 120123 | B4: 15 | C4: 0 | D4: 18 | E4: 19.1 | F4: 13 | G4: -9.5 | H4: 908.5 | I4: 5 | J4: 286 | K4: 16 | L4: 0 | M4: 0 | N4: 0 | O4: 19.7 | P4: 15 | Q4: -7.3 | R4: 19.1 | S4: 14 | T4: -9.3 | U4: 908.5 | V4: 19.7 | W4: 15 | X4: -7.9 | Y4: 19.3 | Z4: 18.5 | AA4: 6.4 | AB4: 52.4 | AD4: 2012-01-23T17:00:00 | AE4: =AVERAGE(E1441:E2160) -> 17.23861111 | AF4: =AVERAGE(F1441:F2160) -> 17.61805556 | AG4: -7.538194444 | AH4: 906.6620833
A5: 120123 | B5: 15 | C5: 0 | D5: 23 | E5: 19.1 | F5: 14 | G5: -8.9 | H5: 908.5 | I5: 5 | J5: 286 | K5: 16 | L5: 0 | M5: 0 | N5: 0 | O5: 19.8 | P5: 15 | Q5: -7.4 | R5: 19.1 | S5: 14 | T5: -9.3 | U5: 908.5 | V5: 19.7 | W5: 15 | X5: -7.9 | Y5: 19.3 | Z5: 18.5 | AA5: 6.4 | AB5: 52.4 | AD5: 2012-01-23T18:00:00 | AE5: =AVERAGE(E2161:E2880) -> 16.18541667 | AF5: =AVERAGE(F2161:F2880) -> 20.7625 | AG5: -6.24875 | AH5: =AVERAGE(H2161:H2880) -> 906.8411111
A6: 120123 | B6: 15 | C6: 0 | D6: 28 | E6: 19.1 | F6: 14 | G6: -9.4 | H6: 908.5 | I6: 5 | J6: 286 | K6: 16 | L6: 0 | M6: 0 | N6: 0 | O6: 19.8 | P6: 15 | Q6: -7.2 | R6: 19.1 | S6: 14 | T6: -9.3 | U6: 908.5 | V6: 19.7 | W6: 15 | X6: -7.9 | Y6: 19.3 | Z6: 18.5 | AA6: 6.4 | AB6: 52.4 | AD6: 2012-01-23T19:00:00 | AE6: =AVERAGE(E2881:E3600) -> 16.00416667 | AF6: =AVERAGE(F2881:F3600) -> 20.81527778 | AG6: -6.4375 | AH6: 906.2836111
A7: 120123 | B7: 15 | C7: 0 | D7: 33 | E7: 19.1 | F7: 14 | G7: -8.9 | H7: 908.5 | I7: 5 | J7: 286 | K7: 16 | L7: 0 | M7: 0 | N7: 0 | O7: 19.8 | P7: 16 | Q7: -6.8 | R7: 19.1 | S7: 14 | T7: -9.3 | U7: 908.5 | V7: 19.7 | W7: 15 | X7: -7.9 | Y7: 19.3 | Z7: 18.5 | AA7: 6.4 | AB7: 52.4 | AD7: 2012-01-23T20:00:00 | AE7: =AVERAGE(E3601:E4320) -> 15.25541667 | AF7: =AVERAGE(F3601:F4320) -> 23.57361111 | AG7: -5.401527778 | AH7: 905.3593056
A8: 120123 | B8: 15 | C8: 0 | D8: 38 | E8: 19.1 | F8: 14 | G8: -9.1 | H8: 908.5 | I8: 9 | J8: 287 | K8: 16 | L8: 0 | M8: 0 | N8: 0 | O8: 19.8 | P8: 15 | Q8: -7.8 | R8: 19.1 | S8: 14 | T8: -9.3 | U8: 908.5 | V8: 19.7 | W8: 15 | X8: -7.9 | Y8: 19.3 | Z8: 18.5 | AA8: 6.4 | AB8: 52.4 | AD8: 2012-01-23T21:00:00 | AE8: =AVERAGE(E4321:E5040) -> 15.29458333 | AF8: =AVERAGE(F4321:F5040) -> 23.27916667 | AG8: -5.525972222 | AH8: 904.8426389
A9: 120123 | B9: 15 | C9: 0 | D9: 43 | E9: 19.1 | F9: 14 | G9: -9.1 | H9: 908.5 | I9: 9 | J9: 287 | K9: 16 | L9: 0 | M9: 0 | N9: 0 | O9: 19.8 | P9: 15 | Q9: -7.8 | R9: 19.1 | S9: 14 | T9: -9.3 | U9: 908.5 | V9: 19.7 | W9: 15 | X9: -7.9 | Y9: 19.3 | Z9: 18.5 | AA9: 6.4 | AB9: 52.4 | AD9: 2012-01-23T22:00:00 | AE9: =AVERAGE(E5041:E5760) -> 14.31527778 | AF9: =AVERAGE(F5041:F5760) -> 25.175 | AG9: -5.364305556 | AH9: 905.0069444
A10: 120123 | B10: 15 | C10: 0 | D10: 48 | E10: 19.1 | F10: 13 | G10: -9.5 | H10: 908.5 | I10: 9 | J10: 287 | K10: 16 | L10: 0 | M10: 0 | N10: 0 | O10: 19.7 | P10: 15 | Q10: -7.9 | R10: 19.1 | S10: 14 | T10: -9.3 | U10: 908.5 | V10: 19.7 | W10: 15 | X10: -7.9 | Y10: 19.3 | Z10: 18.5 | AA10: 6.4 | AB10: 52.4 | AD10: 2012-01-23T23:00:00 | AE10: =AVERAGE(E5761:E6480) -> 14.13444444 | AF10: =AVERAGE(F5761:F6480) -> 25.925 | AG10: -5.129722222 | AH10: 905.2506944
A11: 120123 | B11: 15 | C11: 0 | D11: 53 | E11: 19.1 | F11: 14 | G11: -9 | H11: 908.5 | I11: 9 | J11: 287 | K11: 16 | L11: 0 | M11: 0 | N11: 0 | O11: 19.7 | P11: 15 | Q11: -7.9 | R11: 19.1 | S11: 14 | T11: -9.3 | U11: 908.5 | V11: 19.7 | W11: 15 | X11: -7.9 | Y11: 19.3 | Z11: 18.5 | AA11: 6.4 | AB11: 52.4 | AD11: 2012-01-24 | AE11: =AVERAGE(E6481:E7200) -> 13.11444444 | AF11: =AVERAGE(F6481:F7200) -> 31.21388889 | AG11: -3.519027778 | AH11: 905.8359722
A12: 120123 | B12: 15 | C12: 0 | D12: 58 | E12: 19.1 | F12: 14 | G12: -9 | H12: 908.5 | I12: 9 | J12: 287 | K12: 16 | L12: 0 | M12: 0 | N12: 0 | O12: 19.8 | P12: 15 | Q12: -7.7 | R12: 19.1 | S12: 14 | T12: -9.3 | U12: 908.5 | V12: 19.7 | W12: 15 | X12: -7.9 | Y12: 19.3 | Z12: 18.5 | AA12: 6.4 | AB12: 52.4 | AD12: 2012-01-24T01:00:00 | AE12: =AVERAGE(E7201:E7920) -> 11.31486111 | AF12: =AVERAGE(F7201:F7920) -> 37.41111111 | AG12: -2.746388889 | AH12: 906.3905556
A13: 120123 | B13: 15 | C13: 1 | D13: 3 | E13: 19.1 | F13: 14 | G13: -9.1 | H13: 908.4 | I13: 9 | J13: 287 | K13: 16 | L13: 0 | M13: 0 | N13: 0 | O13: 19.8 | P13: 15 | Q13: -7.8 | R13: 19.1 | S13: 14 | T13: -9.3 | U13: 908.5 | V13: 19.7 | W13: 15 | X13: -7.9 | Y13: 19.3 | Z13: 18.5 | AA13: 6.4 | AB13: 52.4 | AD13: 2012-01-24T02:00:00 | AE13: =AVERAGE(E7921:E8640) -> 9.496527778 | AF13: =AVERAGE(F7921:F8640) -> 44.35277778 | AG13: -2.056111111 | AH13: 906.8655556
A14: 120123 | B14: 15 | C14: 1 | D14: 8 | E14: 19.1 | F14: 14 | G14: -9.1 | H14: 908.4 | I14: 9 | J14: 287 | K14: 16 | L14: 0 | M14: 0 | N14: 0 | O14: 19.8 | P14: 15 | Q14: -7.5 | R14: 19.1 | S14: 14 | T14: -9.3 | U14: 908.5 | V14: 19.7 | W14: 15 | X14: -7.9 | Y14: 19.3 | Z14: 18.5 | AA14: 6.4 | AB14: 52.4 | AD14: 2012-01-24T03:00:00 | AE14: =AVERAGE(E8641:E9360) -> 9.7425 | AF14: =AVERAGE(F8641:F9360) -> 46.94027778 | AG14: -1.054166667 | AH14: 906.4818056
A15: 120123 | B15: 15 | C15: 1 | D15: 14 | E15: 19.1 | F15: 14 | G15: -9.1 | H15: 908.4 | I15: 9 | J15: 287 | K15: 16 | L15: 0 | M15: 0 | N15: 0 | O15: 19.8 | P15: 15 | Q15: -7.9 | R15: 19.1 | S15: 14 | T15: -9.3 | U15: 908.5 | V15: 19.7 | W15: 15 | X15: -7.9 | Y15: 19.3 | Z15: 18.5 | AA15: 6.4 | AB15: 52.4 | AD15: 2012-01-24T04:00:00 | AE15: =AVERAGE(E9361:E10080) -> 9.556527778 | AF15: =AVERAGE(F9361:F10080) -> 49.30833333 | AG15: -0.5418055556 | AH15: 906.5656944
A16: 120123 | B16: 15 | C16: 1 | D16: 18 | E16: 19.1 | F16: 14 | G16: -9.1 | H16: 908.5 | I16: 9 | J16: 287 | K16: 16 | L16: 0 | M16: 0 | N16: 0 | O16: 19.9 | P16: 15 | Q16: -7.7 | R16: 19.1 | S16: 14 | T16: -9.3 | U16: 908.5 | V16: 19.7 | W16: 15 | X16: -7.9 | Y16: 19.3 | Z16: 18.5 | AA16: 6.4 | AB16: 52.4 | AD16: 2012-01-24T05:00:00 | AE16: =AVERAGE(E10081:E10800) -> 8.884861111 | AF16: =AVERAGE(F10081:F10800) -> 55.55277778 | AG16: 0.4759722222 | AH16: 907.4884722
A17: 120123 | B17: 15 | C17: 1 | D17: 23 | E17: 19.1 | F17: 14 | G17: -9.4 | H17: 908.4 | I17: 9 | J17: 287 | K17: 16 | L17: 0 | M17: 0 | N17: 0 | O17: 19.9 | P17: 16 | Q17: -6.8 | R17: 19.1 | S17: 14 | T17: -9.3 | U17: 908.5 | V17: 19.7 | W17: 15 | X17: -7.9 | Y17: 19.3 | Z17: 18.5 | AA17: 6.4 | AB17: 52.4 | AD17: 2012-01-24T06:00:00 | AE17: =AVERAGE(E10801:E11520) -> 8.2625 | AF17: =AVERAGE(F10801:F11520) -> 60.11111111 | AG17: 1.03375 | AH17: 908.4348611
A18: 120123 | B18: 15 | C18: 1 | D18: 28 | E18: 19.1 | F18: 13 | G18: -9.5 | H18: 908.4 | I18: 9 | J18: 287 | K18: 16 | L18: 0 | M18: 0 | N18: 0 | O18: 19.9 | P18: 16 | Q18: -6.6 | R18: 19.1 | S18: 14 | T18: -9.3 | U18: 908.5 | V18: 19.7 | W18: 15 | X18: -7.9 | Y18: 19.3 | Z18: 18.5 | AA18: 5.1 | AB18: 52.4 | AD18: 2012-01-24T07:00:00 | AE18: =AVERAGE(E11521:E12240) -> 8.145138889 | AF18: =AVERAGE(F11521:F12240) -> 60.22777778 | AG18: 0.9334722222 | AH18: =AVERAGE(H11521:H12240) -> 908.7819444
A19: 120123 | B19: 15 | C19: 1 | D19: 33 | E19: 19.1 | F19: 14 | G19: -9 | H19: 908.4 | I19: 9 | J19: 287 | K19: 16 | L19: 0 | M19: 0 | N19: 0 | O19: 19.9 | P19: 15 | Q19: -7.1 | R19: 19.1 | S19: 14 | T19: -9.3 | U19: 908.5 | V19: 19.7 | W19: 15 | X19: -7.9 | Y19: 19.3 | Z19: 18.5 | AA19: 6.4 | AB19: 52.4 | AD19: 2012-01-24T08:00:00 | AE19: =AVERAGE(E12241:E12960) -> 8.429027778 | AF19: =AVERAGE(F12241:F12960) -> 62.36111111 | AG19: 1.656388889 | AH19: 909.1630556
A20: 120123 | B20: 15 | C20: 1 | D20: 38 | E20: 19.1 | F20: 14 | G20: -9.2 | H20: 908.4 | I20: 9 | J20: 287 | K20: 16 | L20: 0 | M20: 0 | N20: 0 | O20: 19.9 | P20: 15 | Q20: -7.4 | R20: 19.1 | S20: 14 | T20: -9.3 | U20: 908.5 | V20: 19.7 | W20: 15 | X20: -7.9 | Y20: 19.3 | Z20: 18.5 | AA20: 6.4 | AB20: 52.4 | AD20: 2012-01-24T09:00:00 | AE20: =AVERAGE(E12961:E13680) -> 9.486944444 | AF20: =AVERAGE(F12961:F13680) -> 62.57916667 | AG20: 2.716527778 | AH20: =AVERAGE(H12961:H13680) -> 909.6091667
A21: 120123 | B21: 15 | C21: 1 | D21: 43 | E21: 19.1 | F21: 14 | G21: -9 | H21: 908.4 | I21: 9 | J21: 287 | K21: 16 | L21: 0 | M21: 0 | N21: 0 | O21: 19.9 | P21: 16 | Q21: -6.9 | R21: 19.1 | S21: 14 | T21: -9.3 | U21: 908.5 | V21: 19.7 | W21: 15 | X21: -7.9 | Y21: 19.3 | Z21: 18.5 | AA21: 6.4 | AB21: 52.4 | AD21: 2012-01-24T10:00:00 | AE21: =AVERAGE(E13681:E14400) -> 10.73527778 | AF21: =AVERAGE(F13681:F14400) -> 58.76527778 | AG21: 3.003194444 | AH21: 909.8180556
A22: 120123 | B22: 15 | C22: 1 | D22: 48 | E22: 19.1 | F22: 14 | G22: -9 | H22: 908.4 | I22: 9 | J22: 287 | K22: 16 | L22: 0 | M22: 0 | N22: 0 | O22: 19.9 | P22: 16 | Q22: -6.8 | R22: 19.1 | S22: 14 | T22: -9.3 | U22: 908.5 | V22: 19.7 | W22: 15 | X22: -7.9 | Y22: 19.3 | Z22: 18.5 | AA22: 6.4 | AB22: 52.4 | AD22: 2012-01-24T11:00:00 | AE22: =AVERAGE(E14401:E15120) -> 11.09930556 | AF22: =AVERAGE(F14401:F15120) -> 57.16805556 | AG22: 2.944444444 | AH22: 910.0111111
A23: 120123 | B23: 15 | C23: 1 | D23: 53 | E23: 19.1 | F23: 14 | G23: -9.2 | H23: 908.4 | I23: 9 | J23: 287 | K23: 16 | L23: 0 | M23: 0 | N23: 0 | O23: 20.1 | P23: 16 | Q23: -6.7 | R23: 19.1 | S23: 14 | T23: -9.3 | U23: 908.5 | V23: 19.7 | W23: 15 | X23: -7.9 | Y23: 19.3 | Z23: 18.5 | AA23: 6.4 | AB23: 52.4 | AD23: 2012-01-24T12:00:00 | AE23: =AVERAGE(E15121:E15840) -> 11.65041667 | AF23: =AVERAGE(F15121:F15840) -> 54.775 | AG23: 2.864027778 | AH23: 909.6115278
A24: 120123 | B24: 15 | C24: 1 | D24: 58 | E24: 19.1 | F24: 14 | G24: -8.9 | H24: 908.4 | I24: 9 | J24: 287 | K24: 16 | L24: 0 | M24: 0 | N24: 0 | O24: 20.1 | P24: 15 | Q24: -6.9 | R24: 19.1 | S24: 14 | T24: -9.3 | U24: 908.5 | V24: 19.7 | W24: 15 | X24: -7.9 | Y24: 19.3 | Z24: 18.5 | AA24: 6.4 | AB24: 52.4 | AD24: 2012-01-24T13:00:00 | AE24: =AVERAGE(E15841:E16560) -> 12.38152778 | AF24: =AVERAGE(F15841:F16560) -> 52.03055556 | AG24: 2.807916667 | AH24: 909.0381944
A25: 120123 | B25: 15 | C25: 2 | D25: 4 | E25: 19.1 | F25: 14 | G25: -9 | H25: 908.4 | I25: 9 | J25: 287 | K25: 16 | L25: 0 | M25: 0 | N25: 0 | O25: 20.1 | P25: 15 | Q25: -6.9 | R25: 19.1 | S25: 14 | T25: -9.3 | U25: 908.5 | V25: 19.7 | W25: 15 | X25: -7.9 | Y25: 19.3 | Z25: 18.5 | AA25: 6.4 | AB25: 52.4 | AD25: 2012-01-24T14:00:00 | AE25: =AVERAGE(E16561:E17280) -> 13.04111111 | AF25: =AVERAGE(F16561:F17280) -> 49.21388889 | AG25: 2.660833333 | AH25: 908.8072222
A26: 120123 | B26: 15 | C26: 2 | D26: 8 | E26: 19.1 | F26: 14 | G26: -9.4 | H26: 908.4 | I26: 9 | J26: 287 | K26: 16 | L26: 0 | M26: 0 | N26: 0 | O26: 20.1 | P26: 16 | Q26: -6.8 | R26: 19.1 | S26: 14 | T26: -9.3 | U26: 908.5 | V26: 19.7 | W26: 15 | X26: -7.9 | Y26: 19.3 | Z26: 18.5 | AA26: 6.4 | AB26: 52.4 | AD26: 2012-01-24T15:00:00 | AE26: =AVERAGE(E17281:E18000) -> 13.34152778 | AF26: =AVERAGE(F17281:F18000) -> 47.24305556 | AG26: 2.351527778 | AH26: 909.1470833
A27: 120123 | B27: 15 | C27: 2 | D27: 13 | E27: 19.2 | F27: 14 | G27: -8.9 | H27: 908.4 | I27: 9 | J27: 287 | K27: 16 | L27: 0 | M27: 0 | N27: 0 | O27: 19.9 | P27: 16 | Q27: -6.6 | R27: 19.1 | S27: 14 | T27: -9.3 | U27: 908.5 | V27: 19.7 | W27: 15 | X27: -7.9 | Y27: 19.3 | Z27: 18.5 | AA27: 6.4 | AB27: 52.4 | AD27: 2012-01-24T16:00:00 | AE27: =AVERAGE(E18001:E18720) -> 13.28833333 | AF27: =AVERAGE(F18001:F18720) -> 46.675 | AG27: 2.144583333 | AH27: 909.7215278
A28: 120123 | B28: 15 | C28: 2 | D28: 18 | E28: 19.1 | F28: 14 | G28: -9.4 | H28: 908.4 | I28: 9 | J28: 287 | K28: 16 | L28: 0 | M28: 0 | N28: 0 | O28: 19.9 | P28: 15 | Q28: -7 | R28: 19.1 | S28: 14 | T28: -9.3 | U28: 908.5 | V28: 19.7 | W28: 15 | X28: -7.9 | Y28: 19.3 | Z28: 18.5 | AA28: 6.4 | AB28: 52.4 | AD28: 2012-01-24T17:00:00 | AE28: =AVERAGE(E18721:E19440) -> 12.92722222 | AF28: =AVERAGE(F18721:F19440) -> 47.09583333 | AG28: 1.909027778 | AH28: 910.3443056
A29: 120123 | B29: 15 | C29: 2 | D29: 23 | E29: 19.1 | F29: 13 | G29: -9.5 | H29: 908.4 | I29: 9 | J29: 287 | K29: 16 | L29: 0 | M29: 0 | N29: 0 | O29: 19.9 | P29: 16 | Q29: -6.8 | R29: 19.1 | S29: 14 | T29: -9.3 | U29: 908.5 | V29: 19.7 | W29: 15 | X29: -7.9 | Y29: 19.3 | Z29: 18.5 | AA29: 6.4 | AB29: 52.4 | AD29: 2012-01-24T18:00:00 | AE29: =AVERAGE(E19441:E20160) -> 12.13791667 | AF29: =AVERAGE(F19441:F20160) -> 50.46388889 | AG29: 2.135833333 | AH29: 911.2366667
A30: 120123 | B30: 15 | C30: 2 | D30: 28 | E30: 19.1 | F30: 14 | G30: -9.2 | H30: 908.4 | I30: 9 | J30: 287 | K30: 16 | L30: 0 | M30: 0 | N30: 0 | O30: 19.9 | P30: 16 | Q30: -6.6 | R30: 19.1 | S30: 14 | T30: -9.3 | U30: 908.5 | V30: 19.7 | W30: 15 | X30: -7.9 | Y30: 19.3 | Z30: 18.5 | AA30: 6.4 | AB30: 52.4 | AD30: 2012-01-24T19:00:00 | AE30: =AVERAGE(E20161:E20880) -> 11.51361111 | AF30: =AVERAGE(F20161:F20880) -> 53.00972222 | AG30: 2.257777778 | AH30: 912.0636111
A31: 120123 | B31: 15 | C31: 2 | D31: 33 | E31: 19.1 | F31: 14 | G31: -8.9 | H31: 908.3 | I31: 9 | J31: 287 | K31: 16 | L31: 0 | M31: 0 | N31: 0 | O31: 19.9 | P31: 15 | Q31: -7 | R31: 19.1 | S31: 14 | T31: -9.3 | U31: 908.5 | V31: 19.7 | W31: 15 | X31: -7.9 | Y31: 19.3 | Z31: 18.5 | AA31: 6.4 | AB31: 52.4 | AD31: 2012-01-24T20:00:00 | AE31: =AVERAGE(E20881:E21600) -> 11.09083333 | AF31: =AVERAGE(F20881:F21600) -> 54.58611111 | AG31: 2.287777778 | AH31: 912.6679167
A32: 120123 | B32: 15 | C32: 2 | D32: 38 | E32: 19.1 | F32: 14 | G32: -9.4 | H32: 908.3 | I32: 9 | J32: 310 | K32: 14 | L32: 0 | M32: 0 | N32: 0 | O32: 19.8 | P32: 16 | Q32: -6.9 | R32: 19.1 | S32: 14 | T32: -9.2 | U32: 908.5 | V32: 19.8 | W32: 15 | X32: -7.5 | Y32: 19.3 | Z32: 18.5 | AA32: 6.4 | AB32: 52.4 | AD32: 2012-01-24T21:00:00 | AE32: =AVERAGE(E21601:E22320) -> 10.59597222 | AF32: =AVERAGE(F21601:F22320) -> 55.35694444 | AG32: 2.026944444 | AH32: 913.0011111
A33: 120123 | B33: 15 | C33: 2 | D33: 43 | E33: 19.1 | F33: 14 | G33: -9.4 | H33: 908.3 | I33: 9 | J33: 310 | K33: 14 | L33: 0 | M33: 0 | N33: 0 | O33: 19.8 | P33: 16 | Q33: -6.6 | R33: 19.1 | S33: 14 | T33: -9.2 | U33: 908.5 | V33: 19.8 | W33: 15 | X33: -7.5 | Y33: 19.3 | Z33: 18.5 | AA33: 6.4 | AB33: 52.4 | AD33: 2012-01-24T22:00:00 | AE33: =AVERAGE(E22321:E23040) -> 9.535972222 | AF33: =AVERAGE(F22321:F23040) -> 58.89722222 | AG33: 1.868472222 | AH33: 913.5298611
A34: 120123 | B34: 15 | C34: 2 | D34: 48 | E34: 19 | F34: 14 | G34: -9.2 | H34: 908.3 | I34: 9 | J34: 310 | K34: 14 | L34: 0 | M34: 0 | N34: 0 | O34: 19.8 | P34: 16 | Q34: -6.8 | R34: 19.1 | S34: 14 | T34: -9.2 | U34: 908.5 | V34: 19.8 | W34: 15 | X34: -7.5 | Y34: 19.3 | Z34: 18.5 | AA34: 6.4 | AB34: 52.4 | AD34: 2012-01-24T23:00:00 | AE34: =AVERAGE(E23041:E23760) -> 9.283333333 | AF34: =AVERAGE(F23041:F23760) -> 58.34444444 | AG34: 1.552916667 | AH34: 913.5563889
A35: 120123 | B35: 15 | C35: 2 | D35: 54 | E35: 19 | F35: 14 | G35: -9 | H35: 908.3 | I35: 9 | J35: 310 | K35: 14 | L35: 0 | M35: 0 | N35: 0 | O35: 19.8 | P35: 16 | Q35: -6.8 | R35: 19.1 | S35: 14 | T35: -9.2 | U35: 908.5 | V35: 19.8 | W35: 15 | X35: -7.5 | Y35: 19.3 | Z35: 18.5 | AA35: 6.4 | AB35: 52.4 | AD35: 2012-01-25 | AE35: =AVERAGE(E23761:E24480) -> 9.323472222 | AF35: =AVERAGE(F23761:F24480) -> 55.51666667 | AG35: 0.8702777778 | AH35: 913.3202778
A36: 120123 | B36: 15 | C36: 2 | D36: 58 | E36: 19 | F36: 14 | G36: -9.5 | H36: 908.3 | I36: 9 | J36: 310 | K36: 14 | L36: 0 | M36: 0 | N36: 0 | O36: 19.8 | P36: 15 | Q36: -7.1 | R36: 19.1 | S36: 14 | T36: -9.2 | U36: 908.5 | V36: 19.8 | W36: 15 | X36: -7.5 | Y36: 19.3 | Z36: 18.5 | AA36: 6.4 | AB36: 52.4 | AD36: 2012-01-25T01:00:00 | AE36: =AVERAGE(E24481:E25200) -> 8.115833333 | AF36: =AVERAGE(F24481:F25200) -> 58.2125 | AG36: 0.4148611111 | AH36: 913.6831944
A37: 120123 | B37: 15 | C37: 3 | D37: 3 | E37: 19 | F37: 14 | G37: -9.2 | H37: 908.3 | I37: 9 | J37: 310 | K37: 14 | L37: 0 | M37: 0 | N37: 0 | O37: 19.8 | P37: 15 | Q37: -7.6 | R37: 19.1 | S37: 14 | T37: -9.2 | U37: 908.5 | V37: 19.8 | W37: 15 | X37: -7.5 | Y37: 19.3 | Z37: 18.5 | AA37: 6.4 | AB37: 52.4 | AD37: 2012-01-25T02:00:00 | AE37: =AVERAGE(E25201:E25920) -> 7.245138889 | AF37: =AVERAGE(F25201:F25920) -> 64.55833333 | AG37: 1.009583333 | AH37: 914.0773611
A38: 120123 | B38: 15 | C38: 3 | D38: 8 | E38: 19 | F38: 14 | G38: -9.2 | H38: 908.3 | I38: 9 | J38: 310 | K38: 14 | L38: 0 | M38: 0 | N38: 0 | O38: 19.8 | P38: 15 | Q38: -7.9 | R38: 19.1 | S38: 14 | T38: -9.2 | U38: 908.5 | V38: 19.8 | W38: 15 | X38: -7.5 | Y38: 19.3 | Z38: 18.5 | AA38: 6.4 | AB38: 52.4 | AD38: 2012-01-25T03:00:00 | AE38: =AVERAGE(E25921:E26640) -> 6.567916667 | AF38: =AVERAGE(F25921:F26640) -> 67.00416667 | AG38: 0.8831944444 | AH38: 914.1420833
A39: 120123 | B39: 15 | C39: 3 | D39: 13 | E39: 19 | F39: 14 | G39: -9.5 | H39: 908.3 | I39: 9 | J39: 310 | K39: 14 | L39: 0 | M39: 0 | N39: 0 | O39: 19.8 | P39: 15 | Q39: -7.8 | R39: 19.1 | S39: 14 | T39: -9.2 | U39: 908.5 | V39: 19.8 | W39: 15 | X39: -7.5 | Y39: 19.3 | Z39: 18.5 | AA39: 6.4 | AB39: 52.4 | AD39: 2012-01-25T04:00:00 | AE39: =AVERAGE(E26641:E27360) -> 6.833472222 | AF39: =AVERAGE(F26641:F27360) -> 64.67638889 | AG39: 0.6465277778 | AH39: 914.0994444
A40: 120123 | B40: 15 | C40: 3 | D40: 18 | E40: 19 | F40: 14 | G40: -9.3 | H40: 908.3 | I40: 9 | J40: 310 | K40: 14 | L40: 0 | M40: 0 | N40: 0 | O40: 19.7 | P40: 15 | Q40: -7.8 | R40: 19.1 | S40: 14 | T40: -9.2 | U40: 908.5 | V40: 19.8 | W40: 15 | X40: -7.5 | Y40: 19.3 | Z40: 18.5 | AA40: 6.4 | AB40: 52.4 | AD40: 2012-01-25T05:00:00 | AE40: =AVERAGE(E27361:E28080) -> 5.836805556 | AF40: =AVERAGE(F27361:F28080) -> 69.46111111 | AG40: 0.6819444444 | AH40: 914.2341667
A41: 120123 | B41: 15 | C41: 3 | D41: 23 | E41: 19 | F41: 14 | G41: -9.1 | H41: 908.3 | I41: 9 | J41: 310 | K41: 14 | L41: 0 | M41: 0 | N41: 0 | O41: 19.7 | P41: 15 | Q41: -7.7 | R41: 19.1 | S41: 14 | T41: -9.2 | U41: 908.5 | V41: 19.8 | W41: 15 | X41: -7.5 | Y41: 19.3 | Z41: 18.5 | AA41: 6.4 | AB41: 52.4 | AD41: 2012-01-25T06:00:00 | AE41: =AVERAGE(E28081:E28800) -> 5.185416667 | AF41: =AVERAGE(F28081:F28800) -> 72.23055556 | AG41: 0.5897222222 | AH41: 914.7773611
A42: 120123 | B42: 15 | C42: 3 | D42: 28 | E42: 19 | F42: 14 | G42: -8.9 | H42: 908.2 | I42: 9 | J42: 310 | K42: 14 | L42: 0 | M42: 0 | N42: 0 | O42: 19.7 | P42: 15 | Q42: -7.2 | R42: 19.1 | S42: 14 | T42: -9.2 | U42: 908.5 | V42: 19.8 | W42: 15 | X42: -7.5 | Y42: 19.3 | Z42: 18.5 | AA42: 6.4 | AB42: 52.4 | AD42: 2012-01-25T07:00:00 | AE42: =AVERAGE(E28801:E29520) -> 3.932222222 | AF42: =AVERAGE(F28801:F29520) -> 75.75694444 | AG42: 0.04555555556 | AH42: 915.4479167
A43: 120123 | B43: 15 | C43: 3 | D43: 34 | E43: 19 | F43: 14 | G43: -9.2 | H43: 908.3 | I43: 9 | J43: 310 | K43: 14 | L43: 0 | M43: 0 | N43: 0 | O43: 19.7 | P43: 16 | Q43: -7.1 | R43: 19.1 | S43: 14 | T43: -9.2 | U43: 908.5 | V43: 19.8 | W43: 15 | X43: -7.5 | Y43: 19.3 | Z43: 18.5 | AA43: 6.4 | AB43: 52.4 | AD43: 2012-01-25T08:00:00 | AE43: =AVERAGE(E29521:E30240) -> 5.428888889 | AF43: =AVERAGE(F29521:F30240) -> 69.15138889 | AG43: 0.2170833333 | AH43: 915.5354167
A44: 120123 | B44: 15 | C44: 3 | D44: 38 | E44: 19 | F44: 14 | G44: -8.9 | H44: 908.3 | I44: 9 | J44: 310 | K44: 14 | L44: 0 | M44: 0 | N44: 0 | O44: 19.8 | P44: 16 | Q44: -6.9 | R44: 19.1 | S44: 14 | T44: -9.2 | U44: 908.5 | V44: 19.8 | W44: 15 | X44: -7.5 | Y44: 19.3 | Z44: 18.5 | AA44: 6.4 | AB44: 52.4 | AD44: 2012-01-25T09:00:00 | AE44: =AVERAGE(E30241:E30960) -> 8.038333333 | AF44: =AVERAGE(F30241:F30960) -> 57.99027778 | AG44: 0.2488888889 | AH44: 914.9848611
A45: 120123 | B45: 15 | C45: 3 | D45: 44 | E45: 19 | F45: 14 | G45: -9.3 | H45: 908.2 | I45: 9 | J45: 310 | K45: 14 | L45: 0 | M45: 0 | N45: 0 | O45: 19.7 | P45: 16 | Q45: -7.1 | R45: 19.1 | S45: 14 | T45: -9.2 | U45: 908.5 | V45: 19.8 | W45: 15 | X45: -7.5 | Y45: 19.3 | Z45: 18.5 | AA45: 6.4 | AB45: 52.4 | AD45: 2012-01-25T10:00:00 | AE45: =AVERAGE(E30961:E31680) -> 10.38444444 | AF45: =AVERAGE(F30961:F31680) -> 47.55138889 | AG45: -0.28 | AH45: 646.0234722
A46: 120123 | B46: 15 | C46: 3 | D46: 48 | E46: 19 | F46: 14 | G46: -9.2 | H46: 908.2 | I46: 9 | J46: 310 | K46: 14 | L46: 0 | M46: 0 | N46: 0 | O46: 19.8 | P46: 15 | Q46: -7.4 | R46: 19.1 | S46: 14 | T46: -9.2 | U46: 908.5 | V46: 19.8 | W46: 15 | X46: -7.5 | Y46: 19.3 | Z46: 18.5 | AA46: 6.4 | AB46: 52.4 | AD46: 2012-01-25T11:00:00 | AE46: =AVERAGE(E31681:E32400) -> 11.97458333 | AF46: =AVERAGE(F31681:F32400) -> 42.77222222 | AG46: -0.2763888889 | AH46: 485
A47: 120123 | B47: 15 | C47: 3 | D47: 53 | E47: 19 | F47: 14 | G47: -9.5 | H47: 908.2 | I47: 9 | J47: 310 | K47: 14 | L47: 0 | M47: 0 | N47: 0 | O47: 19.7 | P47: 15 | Q47: -7.7 | R47: 19.1 | S47: 14 | T47: -9.2 | U47: 908.5 | V47: 19.8 | W47: 15 | X47: -7.5 | Y47: 19.3 | Z47: 18.5 | AA47: 5.1 | AB47: 52.4 | AD47: 2012-01-25T12:00:00 | AE47: =AVERAGE(E32401:E33120) -> 13.42180556 | AF47: =AVERAGE(F32401:F33120) -> 36.79722222 | AG47: -1.04125 | AH47: 485
A48: 120123 | B48: 15 | C48: 3 | D48: 58 | E48: 19 | F48: 14 | G48: -9.3 | H48: 908.2 | I48: 9 | J48: 310 | K48: 14 | L48: 0 | M48: 0 | N48: 0 | O48: 19.7 | P48: 15 | Q48: -7.8 | R48: 19.1 | S48: 14 | T48: -9.2 | U48: 908.5 | V48: 19.8 | W48: 15 | X48: -7.5 | Y48: 19.3 | Z48: 18.5 | AA48: 6.4 | AB48: 52.4 | AD48: 2012-01-25T13:00:00 | AE48: =AVERAGE(E33121:E33840) -> 15.18847222 | AF48: =AVERAGE(F33121:F33840) -> 30.96388889 | AG48: -1.831666667 | AH48: 485
A49: 120123 | B49: 15 | C49: 4 | D49: 3 | E49: 19 | F49: 14 | G49: -9.2 | H49: 908.2 | I49: 9 | J49: 310 | K49: 14 | L49: 0 | M49: 0 | N49: 0 | O49: 19.7 | P49: 15 | Q49: -7.9 | R49: 19.1 | S49: 14 | T49: -9.2 | U49: 908.5 | V49: 19.8 | W49: 15 | X49: -7.5 | Y49: 19.3 | Z49: 18.5 | AA49: 6.4 | AB49: 52.4 | AD49: 2012-01-25T14:00:00 | AE49: =AVERAGE(E33841:E34560) -> 16.06680556 | AF49: =AVERAGE(F33841:F34560) -> 29.61388889 | AG49: -1.651388889 | AH49: 485
A50: 120123 | B50: 15 | C50: 4 | D50: 8 | E50: 19 | F50: 13 | G50: -9.6 | H50: 908 | I50: 9 | J50: 310 | K50: 14 | L50: 0 | M50: 0 | N50: 0 | O50: 19.7 | P50: 15 | Q50: -7.6 | R50: 19.1 | S50: 14 | T50: -9.2 | U50: 908.5 | V50: 19.8 | W50: 15 | X50: -7.5 | Y50: 19.3 | Z50: 18.5 | AA50: 6.4 | AB50: 52.4 | AD50: 2012-01-25T15:00:00 | AE50: =AVERAGE(E34561:E35280) -> 16.39875 | AF50: =AVERAGE(F34561:F35280) -> 30.30694444 | AG50: -1.093472222 | AH50: 485
A51: 120123 | B51: 15 | C51: 4 | D51: 13 | E51: 19 | F51: 14 | G51: -9.2 | H51: 908 | I51: 9 | J51: 310 | K51: 14 | L51: 0 | M51: 0 | N51: 0 | O51: 19.7 | P51: 15 | Q51: -7.3 | R51: 19.1 | S51: 14 | T51: -9.2 | U51: 908.5 | V51: 19.8 | W51: 15 | X51: -7.5 | Y51: 19.3 | Z51: 18.5 | AA51: 5.1 | AB51: 52.4 | AD51: 2012-01-25T16:00:00 | AE51: =AVERAGE(E35281:E36000) -> 16.41236111 | AF51: =AVERAGE(F35281:F36000) -> 31.26388889 | AG51: -0.6569444444 | AH51: =AVERAGE(H35281:H36000) -> 485
A52: 120123 | B52: 15 | C52: 4 | D52: 18 | E52: 19 | F52: 14 | G52: -9.1 | H52: 908 | I52: 9 | J52: 310 | K52: 14 | L52: 0 | M52: 0 | N52: 0 | O52: 19.7 | P52: 15 | Q52: -7.5 | R52: 19.1 | S52: 14 | T52: -9.2 | U52: 908.5 | V52: 19.8 | W52: 15 | X52: -7.5 | Y52: 19.3 | Z52: 18.5 | AA52: 5.1 | AB52: 52.4 | AD52: 2012-01-25T17:00:00 | AE52: =AVERAGE(E36001:E36720) -> 15.82222222 | AF52: =AVERAGE(F36001:F36720) -> 31.57777778 | AG52: -1.025 | AH52: 485
A53: 120123 | B53: 15 | C53: 4 | D53: 23 | E53: 19 | F53: 14 | G53: -9.3 | H53: 908 | I53: 9 | J53: 310 | K53: 14 | L53: 0 | M53: 0 | N53: 0 | O53: 19.7 | P53: 15 | Q53: -7.8 | R53: 19.1 | S53: 14 | T53: -9.2 | U53: 908.5 | V53: 19.8 | W53: 15 | X53: -7.5 | Y53: 19.3 | Z53: 18.5 | AA53: 6.4 | AB53: 52.4 | AD53: 2012-01-25T18:00:00 | AE53: =AVERAGE(E36721:E37440) -> 14.50875 | AF53: =AVERAGE(F36721:F37440) -> 32.81805556 | AG53: -1.576388889 | AH53: 485
A54: 120123 | B54: 15 | C54: 4 | D54: 28 | E54: 19 | F54: 13 | G54: -9.6 | H54: 908 | I54: 9 | J54: 310 | K54: 14 | L54: 0 | M54: 0 | N54: 0 | O54: 19.7 | P54: 15 | Q54: -7.7 | R54: 19.1 | S54: 14 | T54: -9.2 | U54: 908.5 | V54: 19.8 | W54: 15 | X54: -7.5 | Y54: 19.3 | Z54: 18.5 | AA54: 6.4 | AB54: 52.4 | AD54: 2012-01-25T19:00:00 | AE54: =AVERAGE(E37441:E38160) -> 13.74208333 | AF54: =AVERAGE(F37441:F38160) -> 34.15555556 | AG54: -1.745277778 | AH54: 485
A55: 120123 | B55: 15 | C55: 4 | D55: 33 | E55: 18.8 | F55: 13 | G55: -9.8 | H55: 907.9 | I55: 9 | J55: 310 | K55: 14 | L55: 0 | M55: 0 | N55: 0 | O55: 19.7 | P55: 15 | Q55: -7.3 | R55: 19.1 | S55: 14 | T55: -9.2 | U55: 908.5 | V55: 19.8 | W55: 15 | X55: -7.5 | Y55: 19.3 | Z55: 18.5 | AA55: 5.1 | AB55: 52.4 | AD55: 2012-01-25T20:00:00 | AE55: =AVERAGE(E38161:E38880) -> 12.90152778 | AF55: =AVERAGE(F38161:F38880) -> 37.02777778 | AG55: -1.394861111 | AH55: 485
A56: 120123 | B56: 15 | C56: 4 | D56: 38 | E56: 18.8 | F56: 13 | G56: -9.7 | H56: 908 | I56: 13 | J56: 298 | K56: 14 | L56: 0 | M56: 0 | N56: 0 | O56: 19.7 | P56: 15 | Q56: -7.5 | R56: 19.1 | S56: 14 | T56: -9.2 | U56: 908.5 | V56: 19.8 | W56: 15 | X56: -7.5 | Y56: 19.3 | Z56: 18.5 | AA56: 6.4 | AB56: 52.4 | AD56: 2012-01-25T21:00:00 | AE56: =AVERAGE(E38881:E39600) -> 12.34333333 | AF56: =AVERAGE(F38881:F39600) -> 37.06388889 | AG56: -1.887777778 | AH56: 485
A57: 120123 | B57: 15 | C57: 4 | D57: 43 | E57: 18.8 | F57: 14 | G57: -9.6 | H57: 907.9 | I57: 13 | J57: 298 | K57: 14 | L57: 0 | M57: 0 | N57: 0 | O57: 19.7 | P57: 15 | Q57: -7.8 | R57: 19.1 | S57: 14 | T57: -9.2 | U57: 908.5 | V57: 19.8 | W57: 15 | X57: -7.5 | Y57: 19.3 | Z57: 18.5 | AA57: 5.1 | AB57: 52.4 | AD57: 2012-01-25T22:00:00 | AE57: =AVERAGE(E39601:E40320) -> 10.47083333 | AF57: =AVERAGE(F39601:F40320) -> 44.34305556 | AG57: -1.167916667 | AH57: 485
A58: 120123 | B58: 15 | C58: 4 | D58: 48 | E58: 18.8 | F58: 13 | G58: -9.8 | H58: 907.9 | I58: 13 | J58: 298 | K58: 14 | L58: 0 | M58: 0 | N58: 0 | O58: 19.6 | P58: 15 | Q58: -8 | R58: 19.1 | S58: 14 | T58: -9.2 | U58: 908.5 | V58: 19.8 | W58: 15 | X58: -7.5 | Y58: 19.3 | Z58: 18.5 | AA58: 6.4 | AB58: 52.4 | AD58: 2012-01-25T23:00:00 | AE58: =AVERAGE(E40321:E41040) -> 9.576388889 | AF58: =AVERAGE(F40321:F41040) -> 47.42777778 | AG58: -1.064305556 | AH58: 485
A59: 120123 | B59: 15 | C59: 4 | D59: 53 | E59: 18.8 | F59: 14 | G59: -9.2 | H59: 907.8 | I59: 13 | J59: 298 | K59: 14 | L59: 0 | M59: 0 | N59: 0 | O59: 19.6 | P59: 15 | Q59: -7.8 | R59: 19.1 | S59: 14 | T59: -9.2 | U59: 908.5 | V59: 19.8 | W59: 15 | X59: -7.5 | Y59: 19.3 | Z59: 18.5 | AA59: 5.1 | AB59: 52.4 | AD59: 2012-01-26 | AE59: =AVERAGE(E41041:E41760) -> 8.589305556 | AF59: =AVERAGE(F41041:F41760) -> 51.44305556 | AG59: -0.8455555556 | AH59: 485
A60: 120123 | B60: 15 | C60: 4 | D60: 58 | E60: 18.8 | F60: 14 | G60: -9.2 | H60: 907.9 | I60: 13 | J60: 298 | K60: 14 | L60: 0 | M60: 0 | N60: 0 | O60: 19.6 | P60: 15 | Q60: -7.8 | R60: 19.1 | S60: 14 | T60: -9.2 | U60: 908.5 | V60: 19.8 | W60: 15 | X60: -7.5 | Y60: 19.3 | Z60: 18.5 | AA60: 6.4 | AB60: 52.4 | AD60: 2012-01-26T01:00:00 | AE60: =AVERAGE(E41761:E42480) -> 7.331805556 | AF60: =AVERAGE(F41761:F42480) -> 55.17361111 | AG60: -1.068333333 | AH60: 485
A61: 120123 | B61: 15 | C61: 5 | D61: 3 | E61: 18.8 | F61: 13 | G61: -9.7 | H61: 907.7 | I61: 13 | J61: 298 | K61: 14 | L61: 0 | M61: 0 | N61: 0 | O61: 19.6 | P61: 15 | Q61: -7.4 | R61: 19.1 | S61: 14 | T61: -9.2 | U61: 908.5 | V61: 19.8 | W61: 15 | X61: -7.5 | Y61: 19.3 | Z61: 18.5 | AA61: 5.1 | AB61: 52.4 | AD61: 2012-01-26T02:00:00 | AE61: =AVERAGE(E42481:E43200) -> 6.771111111 | AF61: =AVERAGE(F42481:F43200) -> 58.12638889 | AG61: -0.8626388889 | AH61: 485
A62: 120123 | B62: 15 | C62: 5 | D62: 8 | E62: 18.8 | F62: 14 | G62: -9.6 | H62: 907.8 | I62: 13 | J62: 298 | K62: 14 | L62: 0 | M62: 0 | N62: 0 | O62: 19.6 | P62: 15 | Q62: -7.3 | R62: 19.1 | S62: 14 | T62: -9.2 | U62: 908.5 | V62: 19.8 | W62: 15 | X62: -7.5 | Y62: 19.3 | Z62: 18.5 | AA62: 5.1 | AB62: 52.4 | AD62: 2012-01-26T03:00:00 | AE62: =AVERAGE(E43201:E43920) -> 5.432638889 | AF62: =AVERAGE(F43201:F43920) -> 62.63055556 | AG62: -1.12 | AH62: 485
A63: 120123 | B63: 15 | C63: 5 | D63: 14 | E63: 18.8 | F63: 14 | G63: -9.2 | H63: 907.7 | I63: 13 | J63: 298 | K63: 14 | L63: 0 | M63: 0 | N63: 0 | O63: 19.6 | P63: 15 | Q63: -7.6 | R63: 19.1 | S63: 14 | T63: -9.2 | U63: 908.5 | V63: 19.8 | W63: 15 | X63: -7.5 | Y63: 19.3 | Z63: 18.5 | AA63: 6.4 | AB63: 52.4 | AD63: 2012-01-26T04:00:00 | AE63: =AVERAGE(E43921:E44640) -> 5.038472222 | AF63: =AVERAGE(F43921:F44640) -> 63.87361111 | AG63: -1.22 | AH63: =AVERAGE(H43921:H44640) -> 485
A64: 120123 | B64: 15 | C64: 5 | D64: 18 | E64: 18.8 | F64: 14 | G64: -9.6 | H64: 907.7 | I64: 13 | J64: 298 | K64: 14 | L64: 0 | M64: 0 | N64: 0 | O64: 19.6 | P64: 15 | Q64: -7.7 | R64: 19.1 | S64: 14 | T64: -9.2 | U64: 908.5 | V64: 19.8 | W64: 15 | X64: -7.5 | Y64: 19.3 | Z64: 18.5 | AA64: 6.4 | AB64: 52.4 | AD64: 2012-01-26T05:00:00 | AE64: =AVERAGE(E44641:E45360) -> 4.714027778 | AF64: =AVERAGE(F44641:F45360) -> 65.75416667 | AG64: -1.142777778 | AH64: 485
A65: 120123 | B65: 15 | C65: 5 | D65: 23 | E65: 18.8 | F65: 14 | G65: -9.2 | H65: 907.6 | I65: 13 | J65: 298 | K65: 14 | L65: 0 | M65: 0 | N65: 0 | O65: 19.6 | P65: 15 | Q65: -7.7 | R65: 19.1 | S65: 14 | T65: -9.2 | U65: 908.5 | V65: 19.8 | W65: 15 | X65: -7.5 | Y65: 19.3 | Z65: 18.5 | AA65: 6.4 | AB65: 52.4 | AD65: 2012-01-26T06:00:00 | AE65: =AVERAGE(E45361:E46080) -> 3.846111111 | AF65: =AVERAGE(F45361:F46080) -> 67.20138889 | AG65: -1.681944444 | AH65: 485
A66: 120123 | B66: 15 | C66: 5 | D66: 28 | E66: 18.8 | F66: 14 | G66: -9.4 | H66: 907.6 | I66: 13 | J66: 298 | K66: 14 | L66: 0 | M66: 0 | N66: 0 | O66: 19.4 | P66: 15 | Q66: -8.1 | R66: 19.1 | S66: 14 | T66: -9.2 | U66: 908.5 | V66: 19.8 | W66: 15 | X66: -7.5 | Y66: 19.3 | Z66: 18.5 | AA66: 6.4 | AB66: 52.4 | AD66: 2012-01-26T07:00:00 | AE66: =AVERAGE(E46081:E46800) -> 3.619166667 | AF66: =AVERAGE(F46081:F46800) -> 66.49722222 | AG66: -2.033194444 | AH66: 485
A67: 120123 | B67: 15 | C67: 5 | D67: 33 | E67: 18.8 | F67: 14 | G67: -9.6 | H67: 907.6 | I67: 13 | J67: 298 | K67: 14 | L67: 0 | M67: 0 | N67: 0 | O67: 19.4 | P67: 15 | Q67: -8.1 | R67: 19.1 | S67: 14 | T67: -9.2 | U67: 908.5 | V67: 19.8 | W67: 15 | X67: -7.5 | Y67: 19.3 | Z67: 18.5 | AA67: 5.1 | AB67: 52.4 | AD67: 2012-01-26T08:00:00 | AE67: =AVERAGE(E46801:E47520) -> 5.08875 | AF67: =AVERAGE(F46801:F47520) -> 59.69444444 | AG67: -2.106111111 | AH67: 485
A68: 120123 | B68: 15 | C68: 5 | D68: 38 | E68: 18.8 | F68: 14 | G68: -9.2 | H68: 907.6 | I68: 13 | J68: 298 | K68: 14 | L68: 0 | M68: 0 | N68: 0 | O68: 19.4 | P68: 15 | Q68: -8 | R68: 19.1 | S68: 14 | T68: -9.2 | U68: 908.5 | V68: 19.8 | W68: 15 | X68: -7.5 | Y68: 19.3 | Z68: 18.5 | AA68: 5.1 | AB68: 52.4 | AD68: 2012-01-26T09:00:00 | AE68: =AVERAGE(E47521:E48240) -> 8.946527778 | AF68: =AVERAGE(F47521:F48240) -> 45.70277778 | AG68: -2.2 | AH68: 485
A69: 120123 | B69: 15 | C69: 5 | D69: 43 | E69: 18.8 | F69: 14 | G69: -9.3 | H69: 907.6 | I69: 13 | J69: 298 | K69: 14 | L69: 0 | M69: 0 | N69: 0 | O69: 19.4 | P69: 15 | Q69: -7.8 | R69: 19.1 | S69: 14 | T69: -9.2 | U69: 908.5 | V69: 19.8 | W69: 15 | X69: -7.5 | Y69: 19.3 | Z69: 18.5 | AA69: 6.4 | AB69: 52.4 | AD69: 2012-01-26T10:00:00 | AE69: =AVERAGE(E48241:E48960) -> 12.765 | AF69: =AVERAGE(F48241:F48960) -> 36.66388889 | AG69: -1.681111111 | AH69: 485
A70: 120123 | B70: 15 | C70: 5 | D70: 48 | E70: 18.8 | F70: 14 | G70: -9.3 | H70: 907.6 | I70: 13 | J70: 298 | K70: 14 | L70: 0 | M70: 0 | N70: 0 | O70: 19.4 | P70: 15 | Q70: -7.5 | R70: 19.1 | S70: 14 | T70: -9.2 | U70: 908.5 | V70: 19.8 | W70: 15 | X70: -7.5 | Y70: 19.3 | Z70: 18.5 | AA70: 5.1 | AB70: 52.4 | AD70: 2012-01-26T11:00:00 | AE70: =AVERAGE(E48961:E49680) -> 15.05305556 | AF70: =AVERAGE(F48961:F49680) -> 30.33472222 | AG70: -2.262361111 | AH70: 485
A71: 120123 | B71: 15 | C71: 5 | D71: 54 | E71: 18.8 | F71: 14 | G71: -9.3 | H71: 907.6 | I71: 13 | J71: 298 | K71: 14 | L71: 0 | M71: 0 | N71: 0 | O71: 19.4 | P71: 15 | Q71: -8.1 | R71: 19.1 | S71: 14 | T71: -9.2 | U71: 908.5 | V71: 19.8 | W71: 15 | X71: -7.5 | Y71: 19.3 | Z71: 18.5 | AA71: 6.4 | AB71: 52.4 | AD71: 2012-01-26T12:00:00 | AE71: =AVERAGE(E49681:E50400) -> 17.39611111 | AF71: =AVERAGE(F49681:F50400) -> 25.31527778 | AG71: -2.636944444 | AH71: 485
A72: 120123 | B72: 15 | C72: 5 | D72: 58 | E72: 18.8 | F72: 14 | G72: -9.4 | H72: 907.6 | I72: 13 | J72: 298 | K72: 14 | L72: 0 | M72: 0 | N72: 0 | O72: 19.4 | P72: 15 | Q72: -7.9 | R72: 19.1 | S72: 14 | T72: -9.2 | U72: 908.5 | V72: 19.8 | W72: 15 | X72: -7.5 | Y72: 19.3 | Z72: 18.5 | AA72: 5.1 | AB72: 52.4 | AD72: 2012-01-26T13:00:00 | AE72: =AVERAGE(E50401:E51120) -> 19.00027778 | AF72: =AVERAGE(F50401:F51120) -> 21.9875 | AG72: -3.199583333 | AH72: 485
A73: 120123 | B73: 15 | C73: 6 | D73: 3 | E73: 18.8 | F73: 14 | G73: -9.3 | H73: 907.6 | I73: 13 | J73: 298 | K73: 14 | L73: 0 | M73: 0 | N73: 0 | O73: 19.3 | P73: 15 | Q73: -8 | R73: 19.1 | S73: 14 | T73: -9.2 | U73: 908.5 | V73: 19.8 | W73: 15 | X73: -7.5 | Y73: 19.3 | Z73: 18.5 | AA73: 5.1 | AB73: 52.4 | AD73: 2012-01-26T14:00:00 | AE73: =AVERAGE(E51121:E51840) -> 20.54416667 | AF73: =AVERAGE(F51121:F51840) -> 18.275 | AG73: -4.338055556 | AH73: 485
A74: 120123 | B74: 15 | C74: 6 | D74: 8 | E74: 18.8 | F74: 14 | G74: -9.3 | H74: 907.6 | I74: 13 | J74: 298 | K74: 14 | L74: 0 | M74: 0 | N74: 0 | O74: 19.3 | P74: 15 | Q74: -7.5 | R74: 19.1 | S74: 14 | T74: -9.2 | U74: 908.5 | V74: 19.8 | W74: 15 | X74: -7.5 | Y74: 19.3 | Z74: 18.5 | AA74: 6.4 | AB74: 52.4 | AD74: 2012-01-26T15:00:00 | AE74: =AVERAGE(E51841:E52560) -> 21.55041667 | AF74: =AVERAGE(F51841:F52560) -> 16.54166667 | AG74: -4.888055556 | AH74: 485
A75: 120123 | B75: 15 | C75: 6 | D75: 13 | E75: 18.8 | F75: 14 | G75: -9.3 | H75: 907.6 | I75: 13 | J75: 298 | K75: 14 | L75: 0 | M75: 0 | N75: 0 | O75: 19.3 | P75: 15 | Q75: -7.5 | R75: 19.1 | S75: 14 | T75: -9.2 | U75: 908.5 | V75: 19.8 | W75: 15 | X75: -7.5 | Y75: 19.3 | Z75: 18.5 | AA75: 6.4 | AB75: 52.4 | AD75: 2012-01-26T16:00:00 | AE75: =AVERAGE(E52561:E53280) -> 21.89083333 | AF75: =AVERAGE(F52561:F53280) -> 15.55694444 | AG75: -5.459583333 | AH75: 485
A76: 120123 | B76: 15 | C76: 6 | D76: 18 | E76: 18.7 | F76: 14 | G76: -9.5 | H76: 907.6 | I76: 13 | J76: 298 | K76: 14 | L76: 0 | M76: 0 | N76: 0 | O76: 19.3 | P76: 15 | Q76: -7.7 | R76: 19.1 | S76: 14 | T76: -9.2 | U76: 908.5 | V76: 19.8 | W76: 15 | X76: -7.5 | Y76: 19.3 | Z76: 18.5 | AA76: 5.1 | AB76: 52.4 | AD76: 2012-01-26T17:00:00 | AE76: =AVERAGE(E53281:E54000) -> 19.89902778 | AF76: =AVERAGE(F53281:F54000) -> 24.12777778 | AG76: -1.18875 | AH76: 485
A77: 120123 | B77: 15 | C77: 6 | D77: 23 | E77: 18.7 | F77: 14 | G77: -9.7 | H77: 907.6 | I77: 13 | J77: 298 | K77: 14 | L77: 0 | M77: 0 | N77: 0 | O77: 19.3 | P77: 15 | Q77: -7.8 | R77: 19.1 | S77: 14 | T77: -9.2 | U77: 908.5 | V77: 19.8 | W77: 15 | X77: -7.5 | Y77: 19.3 | Z77: 18.5 | AA77: 6.4 | AB77: 52.4 | AD77: 2012-01-26T18:00:00 | AE77: =AVERAGE(E54001:E54720) -> 17.96861111 | AF77: =AVERAGE(F54001:F54720) -> 27.42083333 | AG77: -1.058611111 | AH77: 485
A78: 120123 | B78: 15 | C78: 6 | D78: 28 | E78: 18.7 | F78: 14 | G78: -9.4 | H78: 907.6 | I78: 13 | J78: 298 | K78: 14 | L78: 0 | M78: 0 | N78: 0 | O78: 19.3 | P78: 15 | Q78: -7.5 | R78: 19.1 | S78: 14 | T78: -9.2 | U78: 908.5 | V78: 19.8 | W78: 15 | X78: -7.5 | Y78: 19.3 | Z78: 18.5 | AA78: 6.4 | AB78: 52.4 | AD78: 2012-01-26T19:00:00 | AE78: =AVERAGE(E54721:E55440) -> 17.30138889 | AF78: =AVERAGE(F54721:F55440) -> 29.53888889 | AG78: -0.6394444444 | AH78: 485
A79: 120123 | B79: 15 | C79: 6 | D79: 33 | E79: 18.7 | F79: 14 | G79: -9.3 | H79: 907.6 | I79: 13 | J79: 298 | K79: 14 | L79: 0 | M79: 0 | N79: 0 | O79: 19.3 | P79: 16 | Q79: -7.4 | R79: 19.1 | S79: 14 | T79: -9.2 | U79: 908.5 | V79: 19.8 | W79: 15 | X79: -7.5 | Y79: 19.3 | Z79: 18.5 | AA79: 6.4 | AB79: 52.4 | AD79: 2012-01-26T20:00:00 | AE79: =AVERAGE(E55441:E56160) -> 16.48041667 | AF79: =AVERAGE(F55441:F56160) -> 31.72222222 | AG79: -0.4066666667 | AH79: 485
A80: 120123 | B80: 15 | C80: 6 | D80: 38 | E80: 18.8 | F80: 14 | G80: -9.3 | H80: 907.5 | I80: 16 | J80: 291 | K80: 14 | L80: 0 | M80: 0 | N80: 0 | O80: 19.3 | P80: 16 | Q80: -7.3 | R80: 19.1 | S80: 14 | T80: -9.2 | U80: 908.5 | V80: 19.8 | W80: 15 | X80: -7.5 | Y80: 19.3 | Z80: 18.5 | AA80: 5.1 | AB80: 52.4 | AD80: 2012-01-26T21:00:00 | AE80: =AVERAGE(E56161:E56880) -> 14.54097222 | AF80: =AVERAGE(F56161:F56880) -> 37.86527778 | AG80: 0.3393055556 | AH80: 485
A81: 120123 | B81: 15 | C81: 6 | D81: 44 | E81: 18.8 | F81: 14 | G81: -9.3 | H81: 907.6 | I81: 16 | J81: 291 | K81: 14 | L81: 0 | M81: 0 | N81: 0 | O81: 19.3 | P81: 15 | Q81: -7.8 | R81: 19.1 | S81: 14 | T81: -9.2 | U81: 908.5 | V81: 19.8 | W81: 15 | X81: -7.5 | Y81: 19.3 | Z81: 18.5 | AA81: 6.4 | AB81: 52.4 | AD81: 2012-01-26T22:00:00 | AE81: =AVERAGE(E56881:E57600) -> 12.37680556 | AF81: =AVERAGE(F56881:F57600) -> 44.10555556 | AG81: 0.4848611111 | AH81: 485
A82: 120123 | B82: 15 | C82: 6 | D82: 48 | E82: 18.8 | F82: 14 | G82: -9.2 | H82: 907.6 | I82: 16 | J82: 291 | K82: 14 | L82: 0 | M82: 0 | N82: 0 | O82: 19.3 | P82: 15 | Q82: -7.8 | R82: 19.1 | S82: 14 | T82: -9.2 | U82: 908.5 | V82: 19.8 | W82: 15 | X82: -7.5 | Y82: 19.3 | Z82: 18.5 | AA82: 6.4 | AB82: 52.4 | AD82: 2012-01-26T23:00:00 | AE82: =AVERAGE(E57601:E58320) -> 10.72055556 | AF82: =AVERAGE(F57601:F58320) -> 47.16527778 | AG82: -0.07986111111 | AH82: 485
A83: 120123 | B83: 15 | C83: 6 | D83: 53 | E83: 18.9 | F83: 14 | G83: -9.3 | H83: 907.5 | I83: 16 | J83: 291 | K83: 14 | L83: 0 | M83: 0 | N83: 0 | O83: 19.3 | P83: 15 | Q83: -7.5 | R83: 19.1 | S83: 14 | T83: -9.2 | U83: 908.5 | V83: 19.8 | W83: 15 | X83: -7.5 | Y83: 19.3 | Z83: 18.5 | AA83: 5.1 | AB83: 52.4 | AD83: 2012-01-27 | AE83: =AVERAGE(E58321:E59040) -> 10.31166667 | AF83: =AVERAGE(F58321:F59040) -> 45.24583333 | AG83: -1.037638889 | AH83: 485
A84: 120123 | B84: 15 | C84: 6 | D84: 58 | E84: 18.7 | F84: 14 | G84: -9.4 | H84: 907.5 | I84: 16 | J84: 291 | K84: 14 | L84: 0 | M84: 0 | N84: 0 | O84: 19.3 | P84: 15 | Q84: -7.7 | R84: 19.1 | S84: 14 | T84: -9.2 | U84: 908.5 | V84: 19.8 | W84: 15 | X84: -7.5 | Y84: 19.3 | Z84: 18.5 | AA84: 6.4 | AB84: 52.4 | AD84: 2012-01-27T01:00:00 | AE84: =AVERAGE(E59041:E59760) -> 9.215138889 | AF84: =AVERAGE(F59041:F59760) -> 47.41944444 | AG84: -1.393611111 | AH84: 485
A85: 120123 | B85: 15 | C85: 7 | D85: 3 | E85: 18.7 | F85: 14 | G85: -9.4 | H85: 907.4 | I85: 16 | J85: 291 | K85: 14 | L85: 0 | M85: 0 | N85: 0 | O85: 19.3 | P85: 15 | Q85: -7.7 | R85: 19.1 | S85: 14 | T85: -9.2 | U85: 908.5 | V85: 19.8 | W85: 15 | X85: -7.5 | Y85: 19.3 | Z85: 18.5 | AA85: 5.1 | AB85: 52.4 | AD85: 2012-01-27T02:00:00 | AE85: =AVERAGE(E59761:E60480) -> 8.865 | AF85: =AVERAGE(F59761:F60480) -> 46.40694444 | AG85: -2.005416667 | AH85: 485
A86: 120123 | B86: 15 | C86: 7 | D86: 8 | E86: 18.7 | F86: 14 | G86: -9.5 | H86: 907.4 | I86: 16 | J86: 291 | K86: 14 | L86: 0 | M86: 0 | N86: 0 | O86: 19.3 | P86: 15 | Q86: -7.7 | R86: 19.1 | S86: 14 | T86: -9.2 | U86: 908.5 | V86: 19.8 | W86: 15 | X86: -7.5 | Y86: 19.3 | Z86: 18.5 | AA86: 5.1 | AB86: 52.4 | AD86: 2012-01-27T03:00:00 | AE86: =AVERAGE(E60481:E61200) -> 8.643333333 | AF86: =AVERAGE(F60481:F61200) -> 45.01944444 | AG86: -2.64875 | AH86: 485
A87: 120123 | B87: 15 | C87: 7 | D87: 13 | E87: 18.7 | F87: 14 | G87: -9.4 | H87: 907.4 | I87: 16 | J87: 291 | K87: 14 | L87: 0 | M87: 0 | N87: 0 | O87: 19.3 | P87: 15 | Q87: -7.7 | R87: 19.1 | S87: 14 | T87: -9.2 | U87: 908.5 | V87: 19.8 | W87: 15 | X87: -7.5 | Y87: 19.3 | Z87: 18.5 | AA87: 6.4 | AB87: 52.4 | AD87: 2012-01-27T04:00:00 | AE87: =AVERAGE(E61201:E61920) -> 8.936666667 | AF87: =AVERAGE(F61201:F61920) -> 42.14722222 | AG87: -3.233611111 | AH87: 485
A88: 120123 | B88: 15 | C88: 7 | D88: 18 | E88: 18.7 | F88: 13 | G88: -9.9 | H88: 907.4 | I88: 16 | J88: 291 | K88: 14 | L88: 0 | M88: 0 | N88: 0 | O88: 19.3 | P88: 15 | Q88: -7.8 | R88: 19.1 | S88: 14 | T88: -9.2 | U88: 908.5 | V88: 19.8 | W88: 15 | X88: -7.5 | Y88: 19.3 | Z88: 18.5 | AA88: 6.4 | AB88: 52.4 | AD88: 2012-01-27T05:00:00 | AE88: =AVERAGE(E61921:E62640) -> 7.809444444 | AF88: =AVERAGE(F61921:F62640) -> 45.55416667 | AG88: -3.21125 | AH88: 485
A89: 120123 | B89: 15 | C89: 7 | D89: 23 | E89: 18.6 | F89: 14 | G89: -9.5 | H89: 907.4 | I89: 16 | J89: 291 | K89: 14 | L89: 0 | M89: 0 | N89: 0 | O89: 19.3 | P89: 15 | Q89: -7.9 | R89: 19.1 | S89: 14 | T89: -9.2 | U89: 908.5 | V89: 19.8 | W89: 15 | X89: -7.5 | Y89: 19.3 | Z89: 18.5 | AA89: 5.1 | AB89: 52.4 | AD89: 2012-01-27T06:00:00 | AE89: =AVERAGE(E62641:E63360) -> 7.340972222 | AF89: =AVERAGE(F62641:F63360) -> 45.79583333 | AG89: -3.566944444 | AH89: 485
A90: 120123 | B90: 15 | C90: 7 | D90: 28 | E90: 18.6 | F90: 13 | G90: -9.9 | H90: 907.3 | I90: 16 | J90: 291 | K90: 14 | L90: 0 | M90: 0 | N90: 0 | O90: 19.3 | P90: 15 | Q90: -7.7 | R90: 19.1 | S90: 14 | T90: -9.2 | U90: 908.5 | V90: 19.8 | W90: 15 | X90: -7.5 | Y90: 19.3 | Z90: 18.5 | AA90: 5.1 | AB90: 52.4 | AD90: 2012-01-27T07:00:00 | AE90: =AVERAGE(E63361:E64080) -> 7.160555556 | AF90: =AVERAGE(F63361:F64080) -> 47.41388889 | AG90: -3.284861111 | AH90: 485
A91: 120123 | B91: 15 | C91: 7 | D91: 33 | E91: 18.6 | F91: 14 | G91: -9.5 | H91: 907.4 | I91: 16 | J91: 291 | K91: 14 | L91: 0 | M91: 0 | N91: 0 | O91: 19.2 | P91: 15 | Q91: -7.8 | R91: 19.1 | S91: 14 | T91: -9.2 | U91: 908.5 | V91: 19.8 | W91: 15 | X91: -7.5 | Y91: 19.3 | Z91: 18.5 | AA91: 5.1 | AB91: 52.4 | AD91: 2012-01-27T08:00:00 | AE91: =AVERAGE(E64081:E64800) -> 8.350555556 | AF91: =AVERAGE(F64081:F64800) -> 43.99583333 | AG91: -3.213333333 | AH91: 485
A92: 120123 | B92: 15 | C92: 7 | D92: 38 | E92: 18.6 | F92: 14 | G92: -9.7 | H92: 907.3 | I92: 16 | J92: 291 | K92: 14 | L92: 0 | M92: 0 | N92: 0 | O92: 19.2 | P92: 15 | Q92: -8 | R92: 18.9 | S92: 14 | T92: -9.4 | U92: 907.8 | V92: 19.5 | W92: 15 | X92: -7.6 | Y92: 19.3 | Z92: 18.5 | AA92: 5.1 | AB92: 52.4 | AD92: 2012-01-27T09:00:00 | AE92: =AVERAGE(E64801:E65520) -> 11.60791667 | AF92: =AVERAGE(F64801:F65520) -> 32.72638889 | AG92: -4.23 | AH92: 485
A93: 120123 | B93: 15 | C93: 7 | D93: 44 | E93: 18.6 | F93: 14 | G93: -9.5 | H93: 907.3 | I93: 16 | J93: 291 | K93: 14 | L93: 0 | M93: 0 | N93: 0 | O93: 19.2 | P93: 15 | Q93: -7.6 | R93: 18.9 | S93: 14 | T93: -9.4 | U93: 907.8 | V93: 19.5 | W93: 15 | X93: -7.6 | Y93: 19.3 | Z93: 18.5 | AA93: 5.1 | AB93: 52.4 | AD93: 2012-01-27T10:00:00 | AE93: =AVERAGE(E65521:E66240) -> 14.74055556 | AF93: =AVERAGE(F65521:F66240) -> 28.17083333 | AG93: -3.492222222 | AH93: 485
A94: 120123 | B94: 15 | C94: 7 | D94: 48 | E94: 18.6 | F94: 14 | G94: -9.5 | H94: 907.3 | I94: 16 | J94: 291 | K94: 14 | L94: 0 | M94: 0 | N94: 0 | O94: 19.2 | P94: 15 | Q94: -7.9 | R94: 18.9 | S94: 14 | T94: -9.4 | U94: 907.8 | V94: 19.5 | W94: 15 | X94: -7.6 | Y94: 19.3 | Z94: 18.5 | AA94: 6.4 | AB94: 52.4 | AD94: 2012-01-27T11:00:00 | AE94: =AVERAGE(E66241:E66960) -> 17.29375 | AF94: =AVERAGE(F66241:F66960) -> 23.32083333 | AG94: -3.850694444 | AH94: 485
A95: 120123 | B95: 15 | C95: 7 | D95: 53 | E95: 18.6 | F95: 14 | G95: -9.5 | H95: 907.3 | I95: 16 | J95: 291 | K95: 14 | L95: 0 | M95: 0 | N95: 0 | O95: 19.2 | P95: 15 | Q95: -7.8 | R95: 18.9 | S95: 14 | T95: -9.4 | U95: 907.8 | V95: 19.5 | W95: 15 | X95: -7.6 | Y95: 19.3 | Z95: 18.5 | AA95: 5.1 | AB95: 52.4 | AD95: 2012-01-27T12:00:00 | AE95: =AVERAGE(E66961:E67680) -> 19.55861111 | AF95: =AVERAGE(F66961:F67680) -> 19.85555556 | AG95: -4.094166667 | AH95: 485
A96: 120123 | B96: 15 | C96: 7 | D96: 58 | E96: 18.6 | F96: 14 | G96: -9.7 | H96: 907.3 | I96: 16 | J96: 291 | K96: 14 | L96: 0 | M96: 0 | N96: 0 | O96: 19.2 | P96: 15 | Q96: -7.8 | R96: 18.9 | S96: 14 | T96: -9.4 | U96: 907.8 | V96: 19.5 | W96: 15 | X96: -7.6 | Y96: 19.3 | Z96: 18.5 | AA96: 6.4 | AB96: 52.4 | AD96: 2012-01-27T13:00:00 | AE96: =AVERAGE(E67681:E68400) -> 20.955 | AF96: =AVERAGE(F67681:F68400) -> 19.55277778 | AG96: -3.117083333 | AH96: 485
A97: 120123 | B97: 15 | C97: 8 | D97: 3 | E97: 18.6 | F97: 14 | G97: -9.5 | H97: 907.3 | I97: 16 | J97: 291 | K97: 14 | L97: 0 | M97: 0 | N97: 0 | O97: 19.2 | P97: 15 | Q97: -7.9 | R97: 18.9 | S97: 14 | T97: -9.4 | U97: 907.8 | V97: 19.5 | W97: 15 | X97: -7.6 | Y97: 19.3 | Z97: 18.5 | AA97: 5.1 | AB97: 52.4 | AD97: 2012-01-27T14:00:00 | AE97: =AVERAGE(E68401:E69120) -> 21.35625 | AF97: =AVERAGE(F68401:F69120) -> 20.8125 | AG97: -1.989166667 | AH97: 485
A98: 120123 | B98: 15 | C98: 8 | D98: 8 | E98: 18.6 | F98: 14 | G98: -9.2 | H98: 907.3 | I98: 16 | J98: 291 | K98: 14 | L98: 0 | M98: 0 | N98: 0 | O98: 19.2 | P98: 15 | Q98: -7.8 | R98: 18.9 | S98: 14 | T98: -9.4 | U98: 907.8 | V98: 19.5 | W98: 15 | X98: -7.6 | Y98: 19.3 | Z98: 18.5 | AA98: 5.1 | AB98: 52.4 | AD98: 2012-01-27T15:00:00 | AE98: =AVERAGE(E69121:E69840) -> 20.50236111 | AF98: =AVERAGE(F69121:F69840) -> 23.17222222 | AG98: -1.185138889 | AH98: 485
A99: 120123 | B99: 15 | C99: 8 | D99: 13 | E99: 18.6 | F99: 13 | G99: -9.9 | H99: 907.3 | I99: 16 | J99: 291 | K99: 14 | L99: 0 | M99: 0 | N99: 0 | O99: 19.2 | P99: 15 | Q99: -7.8 | R99: 18.9 | S99: 14 | T99: -9.4 | U99: 907.8 | V99: 19.5 | W99: 15 | X99: -7.6 | Y99: 19.3 | Z99: 18.5 | AA99: 5.1 | AB99: 52.4 | AD99: 2012-01-27T16:00:00 | AE99: =AVERAGE(E69841:E70560) -> 19.41958333 | AF99: =AVERAGE(F69841:F70560) -> 26.15 | AG99: -0.4980555556 | AH99: 485
A100: 120123 | B100: 15 | C100: 8 | D100: 18 | E100: 18.6 | F100: 14 | G100: -9.7 | H100: 907.3 | I100: 16 | J100: 291 | K100: 14 | L100: 0 | M100: 0 | N100: 0 | O100: 19.2 | P100: 15 | Q100: -7.8 | R100: 18.9 | S100: 14 | T100: -9.4 | U100: 907.8 | V100: 19.5 | W100: 15 | X100: -7.6 | Y100: 19.3 | Z100: 18.5 | AA100: 6.4 | AB100: 52.4 | AD100: 2012-01-27T17:00:00 | AE100: =AVERAGE(E70561:E71280) -> 18.19361111 | AF100: =AVERAGE(F70561:F71280) -> 30.79166667 | AG100: 0.70125 | AH100: 485
A101: 120123 | B101: 15 | C101: 8 | D101: 23 | E101: 18.6 | F101: 14 | G101: -9.4 | H101: 907.3 | I101: 16 | J101: 291 | K101: 14 | L101: 0 | M101: 0 | N101: 0 | O101: 19.2 | P101: 15 | Q101: -7.9 | R101: 18.9 | S101: 14 | T101: -9.4 | U101: 907.8 | V101: 19.5 | W101: 15 | X101: -7.6 | Y101: 19.3 | Z101: 18.5 | AA101: 5.1 | AB101: 52.4 | AD101: 2012-01-27T18:00:00 | AE101: =AVERAGE(E71281:E72000) -> 16.78986111 | AF101: =AVERAGE(F71281:F72000) -> 32.91111111 | AG101: 0.3840277778 | AH101: 485
A102: 120123 | B102: 15 | C102: 8 | D102: 28 | E102: 18.6 | F102: 13 | G102: -9.9 | H102: 907.3 | I102: 16 | J102: 291 | K102: 14 | L102: 0 | M102: 0 | N102: 0 | O102: 19.2 | P102: 15 | Q102: -7.9 | R102: 18.9 | S102: 14 | T102: -9.4 | U102: 907.8 | V102: 19.5 | W102: 15 | X102: -7.6 | Y102: 19.3 | Z102: 18.5 | AA102: 5.1 | AB102: 52.4 | AD102: 2012-01-27T19:00:00 | AE102: =AVERAGE(E72001:E72720) -> 15.95333333 | AF102: =AVERAGE(F72001:F72720) -> 36.875 | AG102: 1.219305556 | AH102: 485
A103: 120123 | B103: 15 | C103: 8 | D103: 33 | E103: 18.6 | F103: 14 | G103: -9.5 | H103: 907.3 | I103: 16 | J103: 291 | K103: 14 | L103: 0 | M103: 0 | N103: 0 | O103: 19.2 | P103: 15 | Q103: -8 | R103: 18.9 | S103: 14 | T103: -9.4 | U103: 907.8 | V103: 19.5 | W103: 15 | X103: -7.6 | Y103: 19.3 | Z103: 18.5 | AA103: 5.1 | AB103: 52.4 | AD103: 2012-01-27T20:00:00 | AE103: =AVERAGE(E72721:E73440) -> 15.54833333 | AF103: =AVERAGE(F72721:F73440) -> 37.58194444 | AG103: 1.116666667 | AH103: 485
A104: 120123 | B104: 15 | C104: 8 | D104: 38 | E104: 18.6 | F104: 14 | G104: -9.5 | H104: 907.3 | I104: 14 | J104: 292 | K104: 14 | L104: 0 | M104: 0 | N104: 0 | O104: 19.2 | P104: 16 | Q104: -7.5 | R104: 18.9 | S104: 14 | T104: -9.4 | U104: 907.8 | V104: 19.5 | W104: 15 | X104: -7.6 | Y104: 19.3 | Z104: 18.5 | AA104: 6.4 | AB104: 52.4 | AD104: 2012-01-27T21:00:00 | AE104: =AVERAGE(E73441:E74160) -> 14.77805556 | AF104: =AVERAGE(F73441:F74160) -> 38.26527778 | AG104: 0.7233333333 | AH104: 485
A105: 120123 | B105: 15 | C105: 8 | D105: 43 | E105: 18.6 | F105: 14 | G105: -9.8 | H105: 907.3 | I105: 14 | J105: 292 | K105: 14 | L105: 0 | M105: 0 | N105: 0 | O105: 19.2 | P105: 15 | Q105: -7.8 | R105: 18.9 | S105: 14 | T105: -9.4 | U105: 907.8 | V105: 19.5 | W105: 15 | X105: -7.6 | Y105: 19.3 | Z105: 18.5 | AA105: 5.1 | AB105: 52.4 | AD105: 2012-01-27T22:00:00 | AE105: =AVERAGE(E74161:E74880) -> 14.03166667 | AF105: =AVERAGE(F74161:F74880) -> 40.57916667 | AG105: 0.8269444444 | AH105: 485
A106: 120123 | B106: 15 | C106: 8 | D106: 48 | E106: 18.6 | F106: 14 | G106: -9.5 | H106: 907.3 | I106: 14 | J106: 292 | K106: 14 | L106: 0 | M106: 0 | N106: 0 | O106: 19.2 | P106: 16 | Q106: -7.5 | R106: 18.9 | S106: 14 | T106: -9.4 | U106: 907.8 | V106: 19.5 | W106: 15 | X106: -7.6 | Y106: 19.3 | Z106: 18.5 | AA106: 5.1 | AB106: 52.4 | AD106: 2012-01-27T23:00:00 | AE106: =AVERAGE(E74881:E75600) -> 13.55152778 | AF106: =AVERAGE(F74881:F75600) -> 41.88194444 | AG106: 0.8604166667 | AH106: 485
A107: 120123 | B107: 15 | C107: 8 | D107: 53 | E107: 18.6 | F107: 14 | G107: -9.7 | H107: 907.3 | I107: 14 | J107: 292 | K107: 14 | L107: 0 | M107: 0 | N107: 0 | O107: 19.2 | P107: 15 | Q107: -7.6 | R107: 18.9 | S107: 14 | T107: -9.4 | U107: 907.8 | V107: 19.5 | W107: 15 | X107: -7.6 | Y107: 19.3 | Z107: 18.5 | AA107: 5.1 | AB107: 52.4 | AD107: =AD106+0.0416666667 -> 2012-01-28 | AE107: =AVERAGE(E75601:E76320) -> 12.92513889 | AF107: =AVERAGE(F75601:F76320) -> 44.00277778 | AG107: 0.9940277778 | AH107: 485
A108: 120123 | B108: 15 | C108: 8 | D108: 58 | E108: 18.6 | F108: 14 | G108: -9.3 | H108: 907.3 | I108: 14 | J108: 292 | K108: 14 | L108: 0 | M108: 0 | N108: 0 | O108: 19.2 | P108: 15 | Q108: -7.6 | R108: 18.9 | S108: 14 | T108: -9.4 | U108: 907.8 | V108: 19.5 | W108: 15 | X108: -7.6 | Y108: 19.3 | Z108: 18.5 | AA108: 5.1 | AB108: 52.4 | AD108: =AD107+0.0416666667 -> 2012-01-28T01:00:00 | AE108: =AVERAGE(E76321:E77040) -> 12.28555556 | AF108: =AVERAGE(F76321:F77040) -> 47.0125 | AG108: 1.270833333 | AH108: 485
A109: 120123 | B109: 15 | C109: 9 | D109: 3 | E109: 18.6 | F109: 14 | G109: -9.5 | H109: 907.3 | I109: 14 | J109: 292 | K109: 14 | L109: 0 | M109: 0 | N109: 0 | O109: 19.2 | P109: 16 | Q109: -7.5 | R109: 18.9 | S109: 14 | T109: -9.4 | U109: 907.8 | V109: 19.5 | W109: 15 | X109: -7.6 | Y109: 19.3 | Z109: 18.5 | AA109: 6.4 | AB109: 52.4 | AD109: 2012-01-28T02:00:00 | AE109: =AVERAGE(E77041:E77760) -> 12.11208333 | AF109: =AVERAGE(F77041:F77760) -> 47.575 | AG109: 1.299583333 | AH109: 485
A110: 120123 | B110: 15 | C110: 9 | D110: 8 | E110: 18.6 | F110: 14 | G110: -9.2 | H110: 907.3 | I110: 14 | J110: 292 | K110: 14 | L110: 0 | M110: 0 | N110: 0 | O110: 19.2 | P110: 16 | Q110: -7.2 | R110: 18.9 | S110: 14 | T110: -9.4 | U110: 907.8 | V110: 19.5 | W110: 15 | X110: -7.6 | Y110: 19.3 | Z110: 18.5 | AA110: 6.4 | AB110: 52.4 | AD110: 2012-01-28T03:00:00 | AE110: =AVERAGE(E77761:E78480) -> 10.90291667 | AF110: =AVERAGE(F77761:F78480) -> 53.96805556 | AG110: 1.978888889 | AH110: 485
A111: 120123 | B111: 15 | C111: 9 | D111: 13 | E111: 18.6 | F111: 14 | G111: -9.5 | H111: 907.3 | I111: 14 | J111: 292 | K111: 14 | L111: 0 | M111: 0 | N111: 0 | O111: 19.1 | P111: 16 | Q111: -7.5 | R111: 18.9 | S111: 14 | T111: -9.4 | U111: 907.8 | V111: 19.5 | W111: 15 | X111: -7.6 | Y111: 19.3 | Z111: 18.5 | AA111: 5.1 | AB111: 52.4 | AD111: 2012-01-28T04:00:00 | AE111: =AVERAGE(E78481:E79200) -> 10.51347222 | AF111: =AVERAGE(F78481:F79200) -> 55.12777778 | AG111: 1.90125 | AH111: 485
A112: 120123 | B112: 15 | C112: 9 | D112: 18 | E112: 18.6 | F112: 14 | G112: -9.5 | H112: 907.3 | I112: 14 | J112: 292 | K112: 14 | L112: 0 | M112: 0 | N112: 0 | O112: 19.1 | P112: 16 | Q112: -7.6 | R112: 18.9 | S112: 14 | T112: -9.4 | U112: 907.8 | V112: 19.5 | W112: 15 | X112: -7.6 | Y112: 19.3 | Z112: 18.5 | AA112: 5.1 | AB112: 52.4 | AD112: 2012-01-28T05:00:00 | AE112: =AVERAGE(E79201:E79920) -> 10.07638889 | AF112: =AVERAGE(F79201:F79920) -> 58.05277778 | AG112: 2.201111111 | AH112: 485
A113: 120123 | B113: 15 | C113: 9 | D113: 23 | E113: 18.6 | F113: 14 | G113: -9.8 | H113: 907.3 | I113: 14 | J113: 292 | K113: 14 | L113: 0 | M113: 0 | N113: 0 | O113: 19.1 | P113: 16 | Q113: -7.6 | R113: 18.9 | S113: 14 | T113: -9.4 | U113: 907.8 | V113: 19.5 | W113: 15 | X113: -7.6 | Y113: 19.3 | Z113: 18.5 | AA113: 6.4 | AB113: 52.4 | AD113: 2012-01-28T06:00:00 | AE113: =AVERAGE(E79921:E80640) -> 9.909722222 | AF113: =AVERAGE(F79921:F80640) -> 57.83055556 | AG113: 1.992777778 | AH113: 485
A114: 120123 | B114: 15 | C114: 9 | D114: 28 | E114: 18.6 | F114: 14 | G114: -9.6 | H114: 907.3 | I114: 14 | J114: 292 | K114: 14 | L114: 0 | M114: 0 | N114: 0 | O114: 19.1 | P114: 16 | Q114: -7.5 | R114: 18.9 | S114: 14 | T114: -9.4 | U114: 907.8 | V114: 19.5 | W114: 15 | X114: -7.6 | Y114: 19.3 | Z114: 18.5 | AA114: 6.4 | AB114: 52.4 | AD114: 2012-01-28T07:00:00 | AE114: =AVERAGE(E80641:E81360) -> 9.060416667 | AF114: =AVERAGE(F80641:F81360) -> 60.01944444 | AG114: 1.674444444 | AH114: =AVERAGE(H80641:H81360) -> 485
A115: 120123 | B115: 15 | C115: 9 | D115: 33 | E115: 18.6 | F115: 14 | G115: -9.6 | H115: 907.3 | I115: 14 | J115: 292 | K115: 14 | L115: 0 | M115: 0 | N115: 0 | O115: 19.1 | P115: 16 | Q115: -7.5 | R115: 18.9 | S115: 14 | T115: -9.4 | U115: 907.8 | V115: 19.5 | W115: 15 | X115: -7.6 | Y115: 19.3 | Z115: 18.5 | AA115: 5.1 | AB115: 52.4 | AD115: 2012-01-28T08:00:00 | AE115: =AVERAGE(E81361:E82080) -> 8.569444444 | AF115: =AVERAGE(F81361:F82080) -> 61.93611111 | AG115: 1.679722222 | AH115: =AVERAGE(H81361:H82080) -> 485
A116: 120123 | B116: 15 | C116: 9 | D116: 38 | E116: 18.6 | F116: 14 | G116: -9.5 | H116: 907.3 | I116: 14 | J116: 292 | K116: 14 | L116: 0 | M116: 0 | N116: 0 | O116: 19.1 | P116: 16 | Q116: -7.6 | R116: 18.9 | S116: 14 | T116: -9.4 | U116: 907.8 | V116: 19.5 | W116: 15 | X116: -7.6 | Y116: 19.3 | Z116: 18.5 | AA116: 5.1 | AB116: 52.4 | AD116: 2012-01-28T09:00:00 | AE116: =AVERAGE(E82081:E82800) -> 11.26125 | AF116: =AVERAGE(F82081:F82800) -> 43.175 | AG116: -0.8790277778 | AH116: 485
A117: 120123 | B117: 15 | C117: 9 | D117: 43 | E117: 18.6 | F117: 14 | G117: -9.8 | H117: 907.3 | I117: 14 | J117: 292 | K117: 14 | L117: 0 | M117: 0 | N117: 0 | O117: 19.1 | P117: 15 | Q117: -8 | R117: 18.9 | S117: 14 | T117: -9.4 | U117: 907.8 | V117: 19.5 | W117: 15 | X117: -7.6 | Y117: 19.3 | Z117: 18.5 | AA117: 6.4 | AB117: 52.4 | AD117: 2012-01-28T10:00:00 | AE117: =AVERAGE(E82801:E83520) -> 13.50652778 | AF117: =AVERAGE(F82801:F83520) -> 35.825 | AG117: -1.325972222 | AH117: 485
A118: 120123 | B118: 15 | C118: 9 | D118: 48 | E118: 18.6 | F118: 14 | G118: -9.5 | H118: 907.3 | I118: 14 | J118: 292 | K118: 14 | L118: 0 | M118: 0 | N118: 0 | O118: 19.1 | P118: 15 | Q118: -7.9 | R118: 18.9 | S118: 14 | T118: -9.4 | U118: 907.8 | V118: 19.5 | W118: 15 | X118: -7.6 | Y118: 19.3 | Z118: 18.5 | AA118: 5.1 | AB118: 52.4 | AD118: 2012-01-28T11:00:00 | AE118: =AVERAGE(E83521:E84240) -> 15.72472222 | AF118: =AVERAGE(F83521:F84240) -> 31.37083333 | AG118: -1.197777778 | AH118: 485
A119: 120123 | B119: 15 | C119: 9 | D119: 53 | E119: 18.6 | F119: 14 | G119: -9.8 | H119: 907.3 | I119: 14 | J119: 292 | K119: 14 | L119: 0 | M119: 0 | N119: 0 | O119: 19.1 | P119: 15 | Q119: -7.9 | R119: 18.9 | S119: 14 | T119: -9.4 | U119: 907.8 | V119: 19.5 | W119: 15 | X119: -7.6 | Y119: 19.3 | Z119: 18.5 | AA119: 5.1 | AB119: 52.4 | AD119: 2012-01-28T12:00:00 | AE119: =AVERAGE(E84241:E84960) -> 17.85763889 | AF119: =AVERAGE(F84241:F84960) -> 26.30138889 | AG119: -1.753472222 | AH119: 485
A120: 120123 | B120: 15 | C120: 9 | D120: 58 | E120: 18.6 | F120: 14 | G120: -9.5 | H120: 907.3 | I120: 14 | J120: 292 | K120: 14 | L120: 0 | M120: 0 | N120: 0 | O120: 19.1 | P120: 15 | Q120: -7.8 | R120: 18.9 | S120: 14 | T120: -9.4 | U120: 907.8 | V120: 19.5 | W120: 15 | X120: -7.6 | Y120: 19.3 | Z120: 18.5 | AA120: 5.1 | AB120: 52.4 | AD120: =AD119+0.0416666667 -> 2012-01-28T13:00:00 | AE120: =AVERAGE(E84961:E85680) -> 18.88458333 | AF120: =AVERAGE(F84961:F85680) -> 24.71388889 | AG120: -1.72375 | AH120: 485
A121: 120123 | B121: 15 | C121: 10 | D121: 3 | E121: 18.6 | F121: 13 | G121: -9.9 | H121: 907.3 | I121: 14 | J121: 292 | K121: 14 | L121: 0 | M121: 0 | N121: 0 | O121: 19.1 | P121: 15 | Q121: -7.8 | R121: 18.9 | S121: 14 | T121: -9.4 | U121: 907.8 | V121: 19.5 | W121: 15 | X121: -7.6 | Y121: 19.3 | Z121: 18.5 | AA121: 5.1 | AB121: 52.4 | AD121: 2012-01-28T14:00:00 | AE121: =AVERAGE(E85681:E86400) -> 19.85069444 | AF121: =AVERAGE(F85681:F86400) -> 22.97222222 | AG121: -1.903055556 | AH121: 485
A122: 120123 | B122: 15 | C122: 10 | D122: 8 | E122: 18.6 | F122: 14 | G122: -9.7 | H122: 907.3 | I122: 14 | J122: 292 | K122: 14 | L122: 0 | M122: 0 | N122: 0 | O122: 19.1 | P122: 15 | Q122: -7.8 | R122: 18.9 | S122: 14 | T122: -9.4 | U122: 907.8 | V122: 19.5 | W122: 15 | X122: -7.6 | Y122: 19.3 | Z122: 18.5 | AA122: 5.1 | AB122: 52.4 | AD122: 2012-01-28T15:00:00 | AE122: =AVERAGE(E86401:E87120) -> 20.43819444 | AF122: =AVERAGE(F86401:F87120) -> 21.7625 | AG122: -2.152777778 | AH122: 485
A123: 120123 | B123: 15 | C123: 10 | D123: 13 | E123: 18.6 | F123: 14 | G123: -9.7 | H123: 907.3 | I123: 14 | J123: 292 | K123: 14 | L123: 0 | M123: 0 | N123: 0 | O123: 19.1 | P123: 16 | Q123: -7.6 | R123: 18.9 | S123: 14 | T123: -9.4 | U123: 907.8 | V123: 19.5 | W123: 15 | X123: -7.6 | Y123: 19.3 | Z123: 18.5 | AA123: 5.1 | AB123: 52.4 | AD123: 2012-01-28T16:00:00 | AE123: =AVERAGE(E87121:E87840) -> 20.11930556 | AF123: =AVERAGE(F87121:F87840) -> 22.40972222 | AG123: -1.97125 | AH123: 485
A124: 120123 | B124: 15 | C124: 10 | D124: 18 | E124: 18.6 | F124: 14 | G124: -9.5 | H124: 907.3 | I124: 14 | J124: 292 | K124: 14 | L124: 0 | M124: 0 | N124: 0 | O124: 19.1 | P124: 15 | Q124: -7.8 | R124: 18.9 | S124: 14 | T124: -9.4 | U124: 907.8 | V124: 19.5 | W124: 15 | X124: -7.6 | Y124: 19.3 | Z124: 18.5 | AA124: 6.4 | AB124: 52.4 | AD124: 2012-01-28T17:00:00 | AE124: =AVERAGE(E87841:E88560) -> 19.45527778 | AF124: =AVERAGE(F87841:F88560) -> 24.10694444 | AG124: -1.576666667 | AH124: 485
A125: 120123 | B125: 15 | C125: 10 | D125: 23 | E125: 18.6 | F125: 14 | G125: -9.8 | H125: 907.3 | I125: 14 | J125: 292 | K125: 14 | L125: 0 | M125: 0 | N125: 0 | O125: 19.1 | P125: 15 | Q125: -7.9 | R125: 18.9 | S125: 14 | T125: -9.4 | U125: 907.8 | V125: 19.5 | W125: 15 | X125: -7.6 | Y125: 19.3 | Z125: 18.5 | AA125: 6.4 | AB125: 52.4 | AD125: 2012-01-28T18:00:00 | AE125: =AVERAGE(E88561:E89280) -> 18.82541667 | AF125: =AVERAGE(F88561:F89280) -> 24.44861111 | AG125: -1.84 | AH125: 485
A126: 120123 | B126: 15 | C126: 10 | D126: 28 | E126: 18.6 | F126: 13 | G126: -9.9 | H126: 907.3 | I126: 14 | J126: 292 | K126: 14 | L126: 0 | M126: 0 | N126: 0 | O126: 18.9 | P126: 16 | Q126: -7.5 | R126: 18.9 | S126: 14 | T126: -9.4 | U126: 907.8 | V126: 19.5 | W126: 15 | X126: -7.6 | Y126: 19.3 | Z126: 18.5 | AA126: 5.1 | AB126: 52.4 | AD126: 2012-01-28T19:00:00 | AE126: =AVERAGE(E89281:E90000) -> 18.29263889 | AF126: =AVERAGE(F89281:F90000) -> 24.77222222 | AG126: -2.159027778 | AH126: 485
A127: 120123 | B127: 15 | C127: 10 | D127: 33 | E127: 18.6 | F127: 14 | G127: -9.4 | H127: 907.3 | I127: 14 | J127: 292 | K127: 14 | L127: 0 | M127: 0 | N127: 0 | O127: 18.9 | P127: 16 | Q127: -7.4 | R127: 18.9 | S127: 14 | T127: -9.4 | U127: 907.8 | V127: 19.5 | W127: 15 | X127: -7.6 | Y127: 19.3 | Z127: 18.5 | AA127: 5.1 | AB127: 52.4 | AD127: 2012-01-28T20:00:00 | AE127: =AVERAGE(E90001:E90720) -> 18.05694444 | AF127: =AVERAGE(F90001:F90720) -> 24.14722222 | AG127: -2.702083333 | AH127: 485
A128: 120123 | B128: 15 | C128: 10 | D128: 38 | E128: 18.6 | F128: 14 | G128: -9.5 | H128: 907.3 | I128: 7 | J128: 290 | K128: 14 | L128: 0 | M128: 0 | N128: 0 | O128: 18.9 | P128: 16 | Q128: -7.5 | R128: 18.9 | S128: 14 | T128: -9.4 | U128: 907.8 | V128: 19.5 | W128: 15 | X128: -7.6 | Y128: 19.3 | Z128: 18.5 | AA128: 5.1 | AB128: 52.4 | AD128: 2012-01-28T21:00:00 | AE128: =AVERAGE(E90721:E91440) -> 16.50875 | AF128: =AVERAGE(F90721:F91440) -> 25.97361111 | AG128: -3.051944444 | AH128: 485
A129: 120123 | B129: 15 | C129: 10 | D129: 43 | E129: 18.6 | F129: 14 | G129: -9.5 | H129: 907.3 | I129: 7 | J129: 290 | K129: 14 | L129: 0 | M129: 0 | N129: 0 | O129: 18.9 | P129: 16 | Q129: -7.5 | R129: 18.9 | S129: 14 | T129: -9.4 | U129: 907.8 | V129: 19.5 | W129: 15 | X129: -7.6 | Y129: 19.3 | Z129: 18.5 | AA129: 5.1 | AB129: 52.4 | AD129: =AD128+0.0416666667 -> 2012-01-28T22:00:00 | AE129: =AVERAGE(E91441:E92160) -> 14.87347222 | AF129: =AVERAGE(F91441:F92160) -> 28.75694444 | AG129: -3.116111111 | AH129: 485
A130: 120123 | B130: 15 | C130: 10 | D130: 48 | E130: 18.6 | F130: 14 | G130: -9.1 | H130: 907.3 | I130: 7 | J130: 290 | K130: 14 | L130: 0 | M130: 0 | N130: 0 | O130: 18.9 | P130: 16 | Q130: -7 | R130: 18.9 | S130: 14 | T130: -9.4 | U130: 907.8 | V130: 19.5 | W130: 15 | X130: -7.6 | Y130: 19.3 | Z130: 18.5 | AA130: 5.1 | AB130: 52.4 | AD130: 2012-01-28T23:00:00 | AE130: =AVERAGE(E92161:E92880) -> 13.43236111 | AF130: =AVERAGE(F92161:F92880) -> 31.67916667 | AG130: -3.050416667 | AH130: 485
A131: 120123 | B131: 15 | C131: 10 | D131: 53 | E131: 18.6 | F131: 14 | G131: -9.5 | H131: 907.3 | I131: 7 | J131: 290 | K131: 14 | L131: 0 | M131: 0 | N131: 0 | O131: 18.9 | P131: 16 | Q131: -7.5 | R131: 18.9 | S131: 14 | T131: -9.4 | U131: 907.8 | V131: 19.5 | W131: 15 | X131: -7.6 | Y131: 19.3 | Z131: 18.5 | AA131: 5.1 | AB131: 52.4 | AD131: 2012-01-29 | AE131: =AVERAGE(E92881:E93600) -> 13.38097222 | AF131: =AVERAGE(F92881:F93600) -> 31.47777778 | AG131: -3.213611111 | AH131: =AVERAGE(H92881:H93600) -> 485
A132: 120123 | B132: 15 | C132: 10 | D132: 58 | E132: 18.6 | F132: 14 | G132: -9.2 | H132: 907.3 | I132: 7 | J132: 290 | K132: 14 | L132: 0 | M132: 0 | N132: 0 | O132: 18.9 | P132: 16 | Q132: -7.4 | R132: 18.9 | S132: 14 | T132: -9.4 | U132: 907.8 | V132: 19.5 | W132: 15 | X132: -7.6 | Y132: 19.3 | Z132: 18.5 | AA132: 5.1 | AB132: 52.4 | AD132: 2012-01-29T01:00:00 | AE132: =AVERAGE(E93601:E94320) -> 13.59986111 | AF132: =AVERAGE(F93601:F94320) -> 30.52916667 | AG132: -3.411388889 | AH132: 485
A133: 120123 | B133: 15 | C133: 11 | D133: 3 | E133: 18.6 | F133: 14 | G133: -9.7 | H133: 907.3 | I133: 7 | J133: 290 | K133: 14 | L133: 0 | M133: 0 | N133: 0 | O133: 18.9 | P133: 16 | Q133: -7.4 | R133: 18.9 | S133: 14 | T133: -9.4 | U133: 907.8 | V133: 19.5 | W133: 15 | X133: -7.6 | Y133: 19.3 | Z133: 18.5 | AA133: 6.4 | AB133: 52.4 | AD133: 2012-01-29T02:00:00 | AE133: =AVERAGE(E94321:E95040) -> 13.42569444 | AF133: =AVERAGE(F94321:F95040) -> 30.64305556 | AG133: -3.511111111 | AH133: 485
A134: 120123 | B134: 15 | C134: 11 | D134: 8 | E134: 18.6 | F134: 14 | G134: -9.5 | H134: 907.3 | I134: 7 | J134: 290 | K134: 14 | L134: 0 | M134: 0 | N134: 0 | O134: 18.9 | P134: 16 | Q134: -7.2 | R134: 18.9 | S134: 14 | T134: -9.4 | U134: 907.8 | V134: 19.5 | W134: 15 | X134: -7.6 | Y134: 19.3 | Z134: 18.5 | AA134: 5.1 | AB134: 52.4 | AD134: 2012-01-29T03:00:00 | AE134: =AVERAGE(E95041:E95760) -> 14.63888889 | AF134: =AVERAGE(F95041:F95760) -> 28.5 | AG134: -3.413194444 | AH134: 485
A135: 120123 | B135: 15 | C135: 11 | D135: 13 | E135: 18.6 | F135: 14 | G135: -9.8 | H135: 907.3 | I135: 7 | J135: 290 | K135: 14 | L135: 0 | M135: 0 | N135: 0 | O135: 18.9 | P135: 16 | Q135: -7.4 | R135: 18.9 | S135: 14 | T135: -9.4 | U135: 907.8 | V135: 19.5 | W135: 15 | X135: -7.6 | Y135: 19.3 | Z135: 18.5 | AA135: 5.1 | AB135: 52.4 | AD135: 2012-01-29T04:00:00 | AE135: =AVERAGE(E95761:E96480) -> 12.29 | AF135: =AVERAGE(F95761:F96480) -> 33.21111111 | AG135: -3.477361111 | AH135: 485
A136: 120123 | B136: 15 | C136: 11 | D136: 18 | E136: 18.6 | F136: 14 | G136: -9.3 | H136: 907.3 | I136: 7 | J136: 290 | K136: 14 | L136: 0 | M136: 0 | N136: 0 | O136: 18.9 | P136: 16 | Q136: -7.6 | R136: 18.9 | S136: 14 | T136: -9.4 | U136: 907.8 | V136: 19.5 | W136: 15 | X136: -7.6 | Y136: 19.3 | Z136: 18.5 | AA136: 5.1 | AB136: 52.4 | AD136: 2012-01-29T05:00:00 | AE136: =AVERAGE(E96481:E97200) -> 10.95097222 | AF136: =AVERAGE(F96481:F97200) -> 36.32083333 | AG136: -3.4125 | AH136: 485
A137: 120123 | B137: 15 | C137: 11 | D137: 23 | E137: 18.6 | F137: 14 | G137: -9.3 | H137: 907.3 | I137: 7 | J137: 290 | K137: 14 | L137: 0 | M137: 0 | N137: 0 | O137: 18.9 | P137: 16 | Q137: -7.5 | R137: 18.9 | S137: 14 | T137: -9.4 | U137: 907.8 | V137: 19.5 | W137: 15 | X137: -7.6 | Y137: 19.3 | Z137: 18.5 | AA137: 5.1 | AB137: 52.4 | AD137: 2012-01-29T06:00:00 | AE137: =AVERAGE(E97201:E97920) -> 10.13680556 | AF137: =AVERAGE(F97201:F97920) -> 38.96666667 | AG137: -3.214166667 | AH137: 485
A138: 120123 | B138: 15 | C138: 11 | D138: 28 | E138: 18.6 | F138: 14 | G138: -9.3 | H138: 907.3 | I138: 7 | J138: 290 | K138: 14 | L138: 0 | M138: 0 | N138: 0 | O138: 18.9 | P138: 16 | Q138: -7.5 | R138: 18.9 | S138: 14 | T138: -9.4 | U138: 907.8 | V138: 19.5 | W138: 15 | X138: -7.6 | Y138: 19.3 | Z138: 18.5 | AA138: 5.1 | AB138: 52.4 | AD138: 2012-01-29T07:00:00 | AE138: =AVERAGE(E97921:E98640) -> 10.02222222 | AF138: =AVERAGE(F97921:F98640) -> 39.09444444 | AG138: -3.259583333 | AH138: 485
A139: 120123 | B139: 15 | C139: 11 | D139: 33 | E139: 18.6 | F139: 14 | G139: -9.4 | H139: 907.3 | I139: 7 | J139: 290 | K139: 14 | L139: 0 | M139: 0 | N139: 0 | O139: 18.9 | P139: 16 | Q139: -7.5 | R139: 18.9 | S139: 14 | T139: -9.4 | U139: 907.8 | V139: 19.5 | W139: 15 | X139: -7.6 | Y139: 19.3 | Z139: 18.5 | AA139: 6.4 | AB139: 52.4 | AD139: 2012-01-29T08:00:00 | AE139: =AVERAGE(E98641:E99360) -> 11.08333333 | AF139: =AVERAGE(F98641:F99360) -> 37.01388889 | AG139: -3.045833333 | AH139: 485
A140: 120123 | B140: 15 | C140: 11 | D140: 38 | E140: 18.6 | F140: 14 | G140: -9.2 | H140: 907.3 | I140: 7 | J140: 290 | K140: 14 | L140: 0 | M140: 0 | N140: 0 | O140: 18.9 | P140: 16 | Q140: -7.2 | R140: 18.9 | S140: 14 | T140: -9.4 | U140: 907.8 | V140: 19.5 | W140: 15 | X140: -7.6 | Y140: 19.3 | Z140: 18.5 | AA140: 5.1 | AB140: 52.4 | AD140: 2012-01-29T09:00:00 | AE140: =AVERAGE(E99361:E100080) -> 12.47305556 | AF140: =AVERAGE(F99361:F100080) -> 36.52916667 | AG140: -1.980277778 | AH140: 485
A141: 120123 | B141: 15 | C141: 11 | D141: 43 | E141: 18.7 | F141: 14 | G141: -9.7 | H141: 907.3 | I141: 7 | J141: 290 | K141: 14 | L141: 0 | M141: 0 | N141: 0 | O141: 18.9 | P141: 16 | Q141: -7.5 | R141: 18.9 | S141: 14 | T141: -9.4 | U141: 907.8 | V141: 19.5 | W141: 15 | X141: -7.6 | Y141: 19.3 | Z141: 18.5 | AA141: 5.1 | AB141: 52.4 | AD141: 2012-01-29T10:00:00 | AE141: =AVERAGE(E100081:E100800) -> 15.19805556 | AF141: =AVERAGE(F100081:F100800) -> 30.75694444 | AG141: -1.923472222 | AH141: 485
A142: 120123 | B142: 15 | C142: 11 | D142: 48 | E142: 18.7 | F142: 14 | G142: -9.1 | H142: 907.3 | I142: 7 | J142: 290 | K142: 14 | L142: 0 | M142: 0 | N142: 0 | O142: 18.9 | P142: 16 | Q142: -7.5 | R142: 18.9 | S142: 14 | T142: -9.4 | U142: 907.8 | V142: 19.5 | W142: 15 | X142: -7.6 | Y142: 19.3 | Z142: 18.5 | AA142: 5.1 | AB142: 52.4 | AD142: 2012-01-29T11:00:00 | AE142: =AVERAGE(E100801:E101520) -> 17.85 | AF142: =AVERAGE(F100801:F101520) -> 25.30972222 | AG142: -2.293888889 | AH142: 485
A143: 120123 | B143: 15 | C143: 11 | D143: 54 | E143: 18.7 | F143: 14 | G143: -9.5 | H143: 907.3 | I143: 7 | J143: 290 | K143: 14 | L143: 0 | M143: 0 | N143: 0 | O143: 19.1 | P143: 16 | Q143: -7.3 | R143: 18.9 | S143: 14 | T143: -9.4 | U143: 907.8 | V143: 19.5 | W143: 15 | X143: -7.6 | Y143: 19.3 | Z143: 18.5 | AA143: 5.1 | AB143: 52.4 | AD143: 2012-01-29T12:00:00 | AE143: =AVERAGE(E101521:E102240) -> 20.59513889 | AF143: =AVERAGE(F101521:F102240) -> 20.15 | AG143: -3.060833333 | AH143: 485
A144: 120123 | B144: 15 | C144: 11 | D144: 58 | E144: 18.7 | F144: 14 | G144: -9.4 | H144: 907.3 | I144: 7 | J144: 290 | K144: 14 | L144: 0 | M144: 0 | N144: 0 | O144: 19.1 | P144: 16 | Q144: -7 | R144: 18.9 | S144: 14 | T144: -9.4 | U144: 907.8 | V144: 19.5 | W144: 15 | X144: -7.6 | Y144: 19.3 | Z144: 18.5 | AA144: 5.1 | AB144: 52.4 | AD144: 2012-01-29T13:00:00 | AE144: =AVERAGE(E102241:E102960) -> 22.0225 | AF144: =AVERAGE(F102241:F102960) -> 17.30138889 | AG144: -3.97125 | AH144: 485
A145: 120123 | B145: 15 | C145: 12 | D145: 3 | E145: 18.6 | F145: 14 | G145: -9.5 | H145: 907.3 | I145: 7 | J145: 290 | K145: 14 | L145: 0 | M145: 0 | N145: 0 | O145: 18.9 | P145: 16 | Q145: -7.3 | R145: 18.9 | S145: 14 | T145: -9.4 | U145: 907.8 | V145: 19.5 | W145: 15 | X145: -7.6 | Y145: 19.3 | Z145: 18.5 | AA145: 5.1 | AB145: 52.4 | AD145: 2012-01-29T14:00:00 | AE145: =AVERAGE(E102961:E103680) -> 22.59777778 | AF145: =AVERAGE(F102961:F103680) -> 15.95 | AG145: -4.57 | AH145: 485
A146: 120123 | B146: 15 | C146: 12 | D146: 8 | E146: 18.6 | F146: 14 | G146: -9.6 | H146: 907.3 | I146: 7 | J146: 290 | K146: 14 | L146: 0 | M146: 0 | N146: 0 | O146: 19.1 | P146: 16 | Q146: -7.3 | R146: 18.9 | S146: 14 | T146: -9.4 | U146: 907.8 | V146: 19.5 | W146: 15 | X146: -7.6 | Y146: 19.3 | Z146: 18.5 | AA146: 5.1 | AB146: 52.4 | AD146: 2012-01-29T15:00:00 | AE146: =AVERAGE(E103681:E104400) -> 23.04069444 | AF146: =AVERAGE(F103681:F104400) -> 14.42777778 | AG146: -5.479166667 | AH146: 485
A147: 120123 | B147: 15 | C147: 12 | D147: 13 | E147: 18.6 | F147: 13 | G147: -9.9 | H147: 907.3 | I147: 7 | J147: 290 | K147: 14 | L147: 0 | M147: 0 | N147: 0 | O147: 19.1 | P147: 16 | Q147: -7.2 | R147: 18.9 | S147: 14 | T147: -9.4 | U147: 907.8 | V147: 19.5 | W147: 15 | X147: -7.6 | Y147: 19.3 | Z147: 18.5 | AA147: 5.1 | AB147: 52.4 | AD147: 2012-01-29T16:00:00 | AE147: =AVERAGE(E104401:E105120) -> 23.19152778 | AF147: =AVERAGE(F104401:F105120) -> 13.73472222 | AG147: -5.939444444 | AH147: 485
A148: 120123 | B148: 15 | C148: 12 | D148: 18 | E148: 18.6 | F148: 14 | G148: -9.5 | H148: 907.3 | I148: 7 | J148: 290 | K148: 14 | L148: 0 | M148: 0 | N148: 0 | O148: 19.1 | P148: 16 | Q148: -7.1 | R148: 18.9 | S148: 14 | T148: -9.4 | U148: 907.8 | V148: 19.5 | W148: 15 | X148: -7.6 | Y148: 19.3 | Z148: 18.5 | AA148: 5.1 | AB148: 52.4 | AD148: 2012-01-29T17:00:00 | AE148: =AVERAGE(E105121:E105840) -> 22.35444444 | AF148: =AVERAGE(F105121:F105840) -> 15.36805556 | AG148: -5.339305556 | AH148: 485
A149: 120123 | B149: 15 | C149: 12 | D149: 23 | E149: 18.6 | F149: 14 | G149: -9.7 | H149: 907.3 | I149: 7 | J149: 290 | K149: 14 | L149: 0 | M149: 0 | N149: 0 | O149: 19.1 | P149: 16 | Q149: -7.3 | R149: 18.9 | S149: 14 | T149: -9.4 | U149: 907.8 | V149: 19.5 | W149: 15 | X149: -7.6 | Y149: 19.3 | Z149: 18.5 | AA149: 5.1 | AB149: 52.4 | AD149: 2012-01-29T18:00:00 | AE149: =AVERAGE(E105841:E106560) -> 19.55430556 | AF149: =AVERAGE(F105841:F106560) -> 24.33611111 | AG149: -1.383888889 | AH149: =AVERAGE(H105841:H106560) -> 485
A150: 120123 | B150: 15 | C150: 12 | D150: 28 | E150: 18.6 | F150: 14 | G150: -9.8 | H150: 907.3 | I150: 7 | J150: 290 | K150: 14 | L150: 0 | M150: 0 | N150: 0 | O150: 19.1 | P150: 16 | Q150: -7.4 | R150: 18.9 | S150: 14 | T150: -9.4 | U150: 907.8 | V150: 19.5 | W150: 15 | X150: -7.6 | Y150: 19.3 | Z150: 18.5 | AA150: 5.1 | AB150: 52.4 | AD150: 2012-01-29T19:00:00 | AE150: =AVERAGE(E106561:E107280) -> 18.69569444 | AF150: =AVERAGE(F106561:F107280) -> 25.58055556 | AG150: -1.420416667 | AH150: 485
A151: 120123 | B151: 15 | C151: 12 | D151: 33 | E151: 18.6 | F151: 14 | G151: -9.7 | H151: 907.3 | I151: 7 | J151: 290 | K151: 14 | L151: 0 | M151: 0 | N151: 0 | O151: 19.1 | P151: 16 | Q151: -7.3 | R151: 18.9 | S151: 14 | T151: -9.4 | U151: 907.8 | V151: 19.5 | W151: 15 | X151: -7.6 | Y151: 19.3 | Z151: 18.5 | AA151: 5.1 | AB151: 52.4 | AD151: 2012-01-29T20:00:00 | AE151: =AVERAGE(E107281:E108000) -> 17.68069444 | AF151: =AVERAGE(F107281:F108000) -> 26.97083333 | AG151: -1.605416667 | AH151: 485
A152: 120123 | B152: 15 | C152: 12 | D152: 38 | E152: 18.6 | F152: 13 | G152: -9.9 | H152: 907.3 | I152: 9 | J152: 295 | K152: 27 | L152: 0 | M152: 0 | N152: 0 | O152: 19.1 | P152: 16 | Q152: -7.6 | R152: 18.6 | S152: 14 | T152: -9.6 | U152: 907.3 | V152: 19.1 | W152: 16 | X152: -7.6 | Y152: 19.3 | Z152: 18.5 | AA152: 5.1 | AB152: 52.4 | AD152: 2012-01-29T21:00:00 | AE152: =AVERAGE(E108001:E108720) -> 15.72319444 | AF152: =AVERAGE(F108001:F108720) -> 30.40416667 | AG152: -1.600555556 | AH152: 485
A153: 120123 | B153: 15 | C153: 12 | D153: 43 | E153: 18.6 | F153: 14 | G153: -9.4 | H153: 907.3 | I153: 9 | J153: 295 | K153: 27 | L153: 0 | M153: 0 | N153: 0 | O153: 19.1 | P153: 16 | Q153: -7.4 | R153: 18.6 | S153: 14 | T153: -9.6 | U153: 907.3 | V153: 19.1 | W153: 16 | X153: -7.6 | Y153: 19.3 | Z153: 18.5 | AA153: 5.1 | AB153: 52.4 | AD153: 2012-01-29T22:00:00 | AE153: =AVERAGE(E108721:E109440) -> 14.64777778 | AF153: =AVERAGE(F108721:F109440) -> 29.62222222 | AG153: -2.892777778 | AH153: =AVERAGE(H108721:H109440) -> 485
A154: 120123 | B154: 15 | C154: 12 | D154: 48 | E154: 18.6 | F154: 14 | G154: -9.3 | H154: 907.3 | I154: 9 | J154: 295 | K154: 27 | L154: 0 | M154: 0 | N154: 0 | O154: 19.1 | P154: 16 | Q154: -7.3 | R154: 18.6 | S154: 14 | T154: -9.6 | U154: 907.3 | V154: 19.1 | W154: 16 | X154: -7.6 | Y154: 19.3 | Z154: 18.5 | AA154: 5.1 | AB154: 52.4 | AD154: 2012-01-29T23:00:00 | AE154: =AVERAGE(E109441:E110160) -> 13.91722222 | AF154: =AVERAGE(F109441:F110160) -> 29.69166667 | AG154: -3.469861111 | AH154: 485
A155: 120123 | B155: 15 | C155: 12 | D155: 54 | E155: 18.6 | F155: 14 | G155: -9.4 | H155: 907.3 | I155: 9 | J155: 295 | K155: 27 | L155: 0 | M155: 0 | N155: 0 | O155: 19.1 | P155: 16 | Q155: -7.1 | R155: 18.6 | S155: 14 | T155: -9.6 | U155: 907.3 | V155: 19.1 | W155: 16 | X155: -7.6 | Y155: 19.3 | Z155: 18.5 | AA155: 5.1 | AB155: 52.4 | AD155: 2012-01-30 | AE155: =AVERAGE(E110161:E110880) -> 12.80847222 | AF155: =AVERAGE(F110161:F110880) -> 31.60555556 | AG155: -3.638611111 | AH155: 485
A156: 120123 | B156: 15 | C156: 12 | D156: 58 | E156: 18.6 | F156: 14 | G156: -9.4 | H156: 907.2 | I156: 9 | J156: 295 | K156: 27 | L156: 0 | M156: 0 | N156: 0 | O156: 19.1 | P156: 16 | Q156: -7.3 | R156: 18.6 | S156: 14 | T156: -9.6 | U156: 907.3 | V156: 19.1 | W156: 16 | X156: -7.6 | Y156: 19.3 | Z156: 18.5 | AA156: 5.1 | AB156: 52.4 | AD156: 2012-01-30T01:00:00 | AE156: =AVERAGE(E110881:E111600) -> 11.63166667 | AF156: =AVERAGE(F110881:F111600) -> 34.28472222 | AG156: -3.606805556 | AH156: 485
A157: 120123 | B157: 15 | C157: 13 | D157: 3 | E157: 18.6 | F157: 14 | G157: -9.8 | H157: 907.2 | I157: 9 | J157: 295 | K157: 27 | L157: 0 | M157: 0 | N157: 0 | O157: 19.1 | P157: 15 | Q157: -7.9 | R157: 18.6 | S157: 14 | T157: -9.6 | U157: 907.3 | V157: 19.1 | W157: 16 | X157: -7.6 | Y157: 19.3 | Z157: 18.5 | AA157: 5.1 | AB157: 52.4 | AD157: 2012-01-30T02:00:00 | AE157: =AVERAGE(E111601:E112320) -> 9.53875 | AF157: =AVERAGE(F111601:F112320) -> 39.78888889 | AG157: -3.4525 | AH157: 485
A158: 120123 | B158: 15 | C158: 13 | D158: 8 | E158: 18.6 | F158: 14 | G158: -9.3 | H158: 907.3 | I158: 9 | J158: 295 | K158: 27 | L158: 0 | M158: 0 | N158: 0 | O158: 19.1 | P158: 16 | Q158: -7.5 | R158: 18.6 | S158: 14 | T158: -9.6 | U158: 907.3 | V158: 19.1 | W158: 16 | X158: -7.6 | Y158: 19.3 | Z158: 18.5 | AA158: 5.1 | AB158: 52.4 | AD158: 2012-01-30T03:00:00 | AE158: =AVERAGE(E112321:E113040) -> 9.158888889 | AF158: =AVERAGE(F112321:F113040) -> 39.93472222 | AG158: -3.769722222 | AH158: 485
A159: 120123 | B159: 15 | C159: 13 | D159: 13 | E159: 18.6 | F159: 14 | G159: -9.4 | H159: 907.2 | I159: 9 | J159: 295 | K159: 27 | L159: 0 | M159: 0 | N159: 0 | O159: 19.1 | P159: 15 | Q159: -7.9 | R159: 18.6 | S159: 14 | T159: -9.6 | U159: 907.3 | V159: 19.1 | W159: 16 | X159: -7.6 | Y159: 19.3 | Z159: 18.5 | AA159: 5.1 | AB159: 52.4 | AD159: 2012-01-30T04:00:00 | AE159: =AVERAGE(E113041:E113760) -> 8.622361111 | AF159: =AVERAGE(F113041:F113760) -> 40.3625 | AG159: -4.087083333 | AH159: 485
A160: 120123 | B160: 15 | C160: 13 | D160: 18 | E160: 18.6 | F160: 14 | G160: -9.3 | H160: 907.2 | I160: 9 | J160: 295 | K160: 27 | L160: 0 | M160: 0 | N160: 0 | O160: 19.1 | P160: 16 | Q160: -7.6 | R160: 18.6 | S160: 14 | T160: -9.6 | U160: 907.3 | V160: 19.1 | W160: 16 | X160: -7.6 | Y160: 19.3 | Z160: 18.5 | AA160: 5.1 | AB160: 52.4 | AD160: 2012-01-30T05:00:00 | AE160: =AVERAGE(E113761:E114480) -> 9.015 | AF160: =AVERAGE(F113761:F114480) -> 38.66666667 | AG160: -4.300972222 | AH160: 485
A161: 120123 | B161: 15 | C161: 13 | D161: 23 | E161: 18.6 | F161: 14 | G161: -9.3 | H161: 907.2 | I161: 9 | J161: 295 | K161: 27 | L161: 0 | M161: 0 | N161: 0 | O161: 19.1 | P161: 16 | Q161: -7.4 | R161: 18.6 | S161: 14 | T161: -9.6 | U161: 907.3 | V161: 19.1 | W161: 16 | X161: -7.6 | Y161: 19.3 | Z161: 18.5 | AA161: 5.1 | AB161: 52.4 | AD161: 2012-01-30T06:00:00 | AE161: =AVERAGE(E114481:E115200) -> 8.620138889 | AF161: =AVERAGE(F114481:F115200) -> 40.14583333 | AG161: -4.158333333 | AH161: 485
A162: 120123 | B162: 15 | C162: 13 | D162: 28 | E162: 18.6 | F162: 14 | G162: -9.4 | H162: 907.2 | I162: 9 | J162: 295 | K162: 27 | L162: 0 | M162: 0 | N162: 0 | O162: 19.1 | P162: 16 | Q162: -7.3 | R162: 18.6 | S162: 14 | T162: -9.6 | U162: 907.3 | V162: 19.1 | W162: 16 | X162: -7.6 | Y162: 19.3 | Z162: 18.5 | AA162: 5.1 | AB162: 52.4 | AD162: 2012-01-30T07:00:00 | AE162: =AVERAGE(E115201:E115920) -> 8.161944444 | AF162: =AVERAGE(F115201:F115920) -> 40.70555556 | AG162: -4.405277778 | AH162: 485
A163: 120123 | B163: 15 | C163: 13 | D163: 33 | E163: 18.6 | F163: 14 | G163: -9.5 | H163: 907.2 | I163: 9 | J163: 295 | K163: 27 | L163: 0 | M163: 0 | N163: 0 | O163: 19.1 | P163: 16 | Q163: -7.4 | R163: 18.6 | S163: 14 | T163: -9.6 | U163: 907.3 | V163: 19.1 | W163: 16 | X163: -7.6 | Y163: 19.3 | Z163: 18.5 | AA163: 5.1 | AB163: 52.4
A164: 120123 | B164: 15 | C164: 13 | D164: 38 | E164: 18.6 | F164: 14 | G164: -9.3 | H164: 907.2 | I164: 9 | J164: 295 | K164: 27 | L164: 0 | M164: 0 | N164: 0 | O164: 19.1 | P164: 16 | Q164: -7.3 | R164: 18.6 | S164: 14 | T164: -9.6 | U164: 907.3 | V164: 19.1 | W164: 16 | X164: -7.6 | Y164: 19.3 | Z164: 18.5 | AA164: 5.1 | AB164: 52.4
A165: 120123 | B165: 15 | C165: 13 | D165: 44 | E165: 18.6 | F165: 14 | G165: -9.4 | H165: 907.2 | I165: 9 | J165: 295 | K165: 27 | L165: 0 | M165: 0 | N165: 0 | O165: 19.1 | P165: 16 | Q165: -7.3 | R165: 18.6 | S165: 14 | T165: -9.6 | U165: 907.3 | V165: 19.1 | W165: 16 | X165: -7.6 | Y165: 19.3 | Z165: 18.5 | AA165: 5.1 | AB165: 52.4
A166: 120123 | B166: 15 | C166: 13 | D166: 48 | E166: 18.6 | F166: 14 | G166: -9.2 | H166: 907.2 | I166: 9 | J166: 295 | K166: 27 | L166: 0 | M166: 0 | N166: 0 | O166: 19.1 | P166: 16 | Q166: -7 | R166: 18.6 | S166: 14 | T166: -9.6 | U166: 907.3 | V166: 19.1 | W166: 16 | X166: -7.6 | Y166: 19.3 | Z166: 18.5 | AA166: 5.1 | AB166: 52.4
A167: 120123 | B167: 15 | C167: 13 | D167: 53 | E167: 18.6 | F167: 14 | G167: -9.2 | H167: 907.2 | I167: 9 | J167: 295 | K167: 27 | L167: 0 | M167: 0 | N167: 0 | O167: 19.1 | P167: 16 | Q167: -7.3 | R167: 18.6 | S167: 14 | T167: -9.6 | U167: 907.3 | V167: 19.1 | W167: 16 | X167: -7.6 | Y167: 19.3 | Z167: 18.5 | AA167: 5.1 | AB167: 52.4
A168: 120123 | B168: 15 | C168: 13 | D168: 58 | E168: 18.6 | F168: 14 | G168: -9.1 | H168: 907.2 | I168: 9 | J168: 295 | K168: 27 | L168: 0 | M168: 0 | N168: 0 | O168: 19.1 | P168: 16 | Q168: -7.4 | R168: 18.6 | S168: 14 | T168: -9.6 | U168: 907.3 | V168: 19.1 | W168: 16 | X168: -7.6 | Y168: 19.3 | Z168: 18.5 | AA168: 5.1 | AB168: 52.4
A169: 120123 | B169: 15 | C169: 14 | D169: 3 | E169: 18.7 | F169: 14 | G169: -9.1 | H169: 907.2 | I169: 9 | J169: 295 | K169: 27 | L169: 0 | M169: 0 | N169: 0 | O169: 19.1 | P169: 16 | Q169: -7.4 | R169: 18.6 | S169: 14 | T169: -9.6 | U169: 907.3 | V169: 19.1 | W169: 16 | X169: -7.6 | Y169: 19.3 | Z169: 18.5 | AA169: 5.1 | AB169: 52.4
A170: 120123 | B170: 15 | C170: 14 | D170: 8 | E170: 18.7 | F170: 14 | G170: -9.1 | H170: 907.2 | I170: 9 | J170: 295 | K170: 27 | L170: 0 | M170: 0 | N170: 0 | O170: 19.1 | P170: 16 | Q170: -7.2 | R170: 18.6 | S170: 14 | T170: -9.6 | U170: 907.3 | V170: 19.1 | W170: 16 | X170: -7.6 | Y170: 19.3 | Z170: 18.5 | AA170: 5.1 | AB170: 52.4
A171: 120123 | B171: 15 | C171: 14 | D171: 13 | E171: 18.7 | F171: 14 | G171: -9 | H171: 907.2 | I171: 9 | J171: 295 | K171: 27 | L171: 0 | M171: 0 | N171: 0 | O171: 19.1 | P171: 16 | Q171: -7.4 | R171: 18.6 | S171: 14 | T171: -9.6 | U171: 907.3 | V171: 19.1 | W171: 16 | X171: -7.6 | Y171: 19.3 | Z171: 18.5 | AA171: 5.1 | AB171: 52.4
A172: 120123 | B172: 15 | C172: 14 | D172: 18 | E172: 18.7 | F172: 14 | G172: -9.2 | H172: 907.2 | I172: 9 | J172: 295 | K172: 27 | L172: 0 | M172: 0 | N172: 0 | O172: 19.1 | P172: 16 | Q172: -7.4 | R172: 18.6 | S172: 14 | T172: -9.6 | U172: 907.3 | V172: 19.1 | W172: 16 | X172: -7.6 | Y172: 19.3 | Z172: 18.5 | AA172: 5.1 | AB172: 52.4
A173: 120123 | B173: 15 | C173: 14 | D173: 23 | E173: 18.7 | F173: 14 | G173: -9.1 | H173: 907.1 | I173: 9 | J173: 295 | K173: 27 | L173: 0 | M173: 0 | N173: 0 | O173: 19.1 | P173: 16 | Q173: -7.4 | R173: 18.6 | S173: 14 | T173: -9.6 | U173: 907.3 | V173: 19.1 | W173: 16 | X173: -7.6 | Y173: 19.3 | Z173: 18.5 | AA173: 5.1 | AB173: 52.4
A174: 120123 | B174: 15 | C174: 14 | D174: 28 | E174: 18.7 | F174: 13 | G174: -9.8 | H174: 907.1 | I174: 9 | J174: 295 | K174: 27 | L174: 0 | M174: 0 | N174: 0 | O174: 19.1 | P174: 16 | Q174: -7.3 | R174: 18.6 | S174: 14 | T174: -9.6 | U174: 907.3 | V174: 19.1 | W174: 16 | X174: -7.6 | Y174: 19.3 | Z174: 18.5 | AA174: 5.1 | AB174: 52.4
A175: 120123 | B175: 15 | C175: 14 | D175: 33 | E175: 18.7 | F175: 14 | G175: -9.3 | H175: 907.1 | I175: 9 | J175: 295 | K175: 27 | L175: 0 | M175: 0 | N175: 0 | O175: 19.1 | P175: 16 | Q175: -7.1 | R175: 18.6 | S175: 14 | T175: -9.6 | U175: 907.3 | V175: 19.1 | W175: 16 | X175: -7.6 | Y175: 19.3 | Z175: 18.5 | AA175: 5.1 | AB175: 52.4
A176: 120123 | B176: 15 | C176: 14 | D176: 38 | E176: 18.7 | F176: 14 | G176: -9.3 | H176: 907.1 | I176: 9 | J176: 292 | K176: 27 | L176: 0 | M176: 0 | N176: 0 | O176: 19.1 | P176: 16 | Q176: -7.1 | R176: 18.6 | S176: 14 | T176: -9.6 | U176: 907.3 | V176: 19.1 | W176: 16 | X176: -7.6 | Y176: 19.3 | Z176: 18.5 | AA176: 5.1 | AB176: 52.4
A177: 120123 | B177: 15 | C177: 14 | D177: 43 | E177: 18.7 | F177: 14 | G177: -9.7 | H177: 907.1 | I177: 9 | J177: 292 | K177: 27 | L177: 0 | M177: 0 | N177: 0 | O177: 19.1 | P177: 17 | Q177: -6.7 | R177: 18.6 | S177: 14 | T177: -9.6 | U177: 907.3 | V177: 19.1 | W177: 16 | X177: -7.6 | Y177: 19.3 | Z177: 18.5 | AA177: 5.1 | AB177: 52.4
A178: 120123 | B178: 15 | C178: 14 | D178: 48 | E178: 18.7 | F178: 14 | G178: -9.4 | H178: 907.1 | I178: 9 | J178: 292 | K178: 27 | L178: 0 | M178: 0 | N178: 0 | O178: 18.9 | P178: 16 | Q178: -7.4 | R178: 18.6 | S178: 14 | T178: -9.6 | U178: 907.3 | V178: 19.1 | W178: 16 | X178: -7.6 | Y178: 19.3 | Z178: 18.5 | AA178: 5.1 | AB178: 52.4
A179: 120123 | B179: 15 | C179: 14 | D179: 53 | E179: 18.7 | F179: 14 | G179: -9.3 | H179: 907.1 | I179: 9 | J179: 292 | K179: 27 | L179: 0 | M179: 0 | N179: 0 | O179: 18.9 | P179: 16 | Q179: -7.1 | R179: 18.6 | S179: 14 | T179: -9.6 | U179: 907.3 | V179: 19.1 | W179: 16 | X179: -7.6 | Y179: 19.3 | Z179: 18.5 | AA179: 5.1 | AB179: 52.4
A180: 120123 | B180: 15 | C180: 14 | D180: 58 | E180: 18.7 | F180: 14 | G180: -9.3 | H180: 907.1 | I180: 9 | J180: 292 | K180: 27 | L180: 0 | M180: 0 | N180: 0 | O180: 18.9 | P180: 17 | Q180: -6.9 | R180: 18.6 | S180: 14 | T180: -9.6 | U180: 907.3 | V180: 19.1 | W180: 16 | X180: -7.6 | Y180: 19.3 | Z180: 18.5 | AA180: 5.1 | AB180: 52.4
A181: 120123 | B181: 15 | C181: 15 | D181: 3 | E181: 18.7 | F181: 14 | G181: -9.4 | H181: 907.1 | I181: 9 | J181: 292 | K181: 27 | L181: 0 | M181: 0 | N181: 0 | O181: 18.9 | P181: 16 | Q181: -7.3 | R181: 18.6 | S181: 14 | T181: -9.6 | U181: 907.3 | V181: 19.1 | W181: 16 | X181: -7.6 | Y181: 19.3 | Z181: 18.5 | AA181: 5.1 | AB181: 52.4
A182: 120123 | B182: 15 | C182: 15 | D182: 8 | E182: 18.7 | F182: 14 | G182: -9.4 | H182: 907.1 | I182: 9 | J182: 292 | K182: 27 | L182: 0 | M182: 0 | N182: 0 | O182: 18.9 | P182: 16 | Q182: -7.6 | R182: 18.6 | S182: 14 | T182: -9.6 | U182: 907.3 | V182: 19.1 | W182: 16 | X182: -7.6 | Y182: 19.3 | Z182: 18.5 | AA182: 5.1 | AB182: 52.4
A183: 120123 | B183: 15 | C183: 15 | D183: 13 | E183: 18.7 | F183: 14 | G183: -9.4 | H183: 907.1 | I183: 9 | J183: 292 | K183: 27 | L183: 0 | M183: 0 | N183: 0 | O183: 18.9 | P183: 15 | Q183: -8.1 | R183: 18.6 | S183: 14 | T183: -9.6 | U183: 907.3 | V183: 19.1 | W183: 16 | X183: -7.6 | Y183: 19.3 | Z183: 18.5 | AA183: 5.1 | AB183: 52.4
A184: 120123 | B184: 15 | C184: 15 | D184: 18 | E184: 18.6 | F184: 14 | G184: -9.5 | H184: 907 | I184: 9 | J184: 292 | K184: 27 | L184: 0 | M184: 0 | N184: 0 | O184: 19.1 | P184: 15 | Q184: -8.1 | R184: 18.6 | S184: 14 | T184: -9.6 | U184: 907.3 | V184: 19.1 | W184: 16 | X184: -7.6 | Y184: 19.3 | Z184: 18.5 | AA184: 5.1 | AB184: 52.4
A185: 120123 | B185: 15 | C185: 15 | D185: 23 | E185: 18.6 | F185: 14 | G185: -9.4 | H185: 907 | I185: 9 | J185: 292 | K185: 27 | L185: 0 | M185: 0 | N185: 0 | O185: 19.1 | P185: 15 | Q185: -8.1 | R185: 18.6 | S185: 14 | T185: -9.6 | U185: 907.3 | V185: 19.1 | W185: 16 | X185: -7.6 | Y185: 19.3 | Z185: 18.5 | AA185: 5.1 | AB185: 52.4
A186: 120123 | B186: 15 | C186: 15 | D186: 28 | E186: 18.6 | F186: 14 | G186: -9.4 | H186: 907.1 | I186: 9 | J186: 292 | K186: 27 | L186: 0 | M186: 0 | N186: 0 | O186: 19.1 | P186: 15 | Q186: -7.9 | R186: 18.6 | S186: 14 | T186: -9.6 | U186: 907.3 | V186: 19.1 | W186: 16 | X186: -7.6 | Y186: 19.3 | Z186: 18.5 | AA186: 5.1 | AB186: 52.4
A187: 120123 | B187: 15 | C187: 15 | D187: 34 | E187: 18.7 | F187: 14 | G187: -9.3 | H187: 907.1 | I187: 9 | J187: 292 | K187: 27 | L187: 0 | M187: 0 | N187: 0 | O187: 19.1 | P187: 16 | Q187: -7.6 | R187: 18.6 | S187: 14 | T187: -9.6 | U187: 907.3 | V187: 19.1 | W187: 16 | X187: -7.6 | Y187: 19.3 | Z187: 18.5 | AA187: 5.1 | AB187: 52.4
A188: 120123 | B188: 15 | C188: 15 | D188: 38 | E188: 18.6 | F188: 13 | G188: -9.9 | H188: 907.1 | I188: 9 | J188: 292 | K188: 27 | L188: 0 | M188: 0 | N188: 0 | O188: 19.1 | P188: 16 | Q188: -7.5 | R188: 18.6 | S188: 14 | T188: -9.6 | U188: 907.3 | V188: 19.1 | W188: 16 | X188: -7.6 | Y188: 19.3 | Z188: 18.5 | AA188: 5.1 | AB188: 52.4
A189: 120123 | B189: 15 | C189: 15 | D189: 43 | E189: 18.6 | F189: 14 | G189: -9.5 | H189: 907 | I189: 9 | J189: 292 | K189: 27 | L189: 0 | M189: 0 | N189: 0 | O189: 19.1 | P189: 16 | Q189: -7.3 | R189: 18.6 | S189: 14 | T189: -9.6 | U189: 907.3 | V189: 19.1 | W189: 16 | X189: -7.6 | Y189: 19.3 | Z189: 18.5 | AA189: 5.1 | AB189: 52.4
A190: 120123 | B190: 15 | C190: 15 | D190: 48 | E190: 18.6 | F190: 14 | G190: -9.5 | H190: 907 | I190: 9 | J190: 292 | K190: 27 | L190: 0 | M190: 0 | N190: 0 | O190: 19.1 | P190: 16 | Q190: -7.1 | R190: 18.6 | S190: 14 | T190: -9.6 | U190: 907.3 | V190: 19.1 | W190: 16 | X190: -7.6 | Y190: 19.3 | Z190: 18.5 | AA190: 5.1 | AB190: 52.4
A191: 120123 | B191: 15 | C191: 15 | D191: 53 | E191: 18.6 | F191: 14 | G191: -9.4 | H191: 907 | I191: 9 | J191: 292 | K191: 27 | L191: 0 | M191: 0 | N191: 0 | O191: 19.1 | P191: 16 | Q191: -7.3 | R191: 18.6 | S191: 14 | T191: -9.6 | U191: 907.3 | V191: 19.1 | W191: 16 | X191: -7.6 | Y191: 19.3 | Z191: 18.5 | AA191: 5.1 | AB191: 52.4
A192: 120123 | B192: 15 | C192: 15 | D192: 58 | E192: 18.6 | F192: 14 | G192: -9.3 | H192: 907 | I192: 9 | J192: 292 | K192: 27 | L192: 0 | M192: 0 | N192: 0 | O192: 19.1 | P192: 16 | Q192: -7.4 | R192: 18.6 | S192: 14 | T192: -9.6 | U192: 907.3 | V192: 19.1 | W192: 16 | X192: -7.6 | Y192: 19.3 | Z192: 18.5 | AA192: 5.1 | AB192: 52.4
A193: 120123 | B193: 15 | C193: 16 | D193: 3 | E193: 18.6 | F193: 13 | G193: -9.9 | H193: 907 | I193: 9 | J193: 292 | K193: 27 | L193: 0 | M193: 0 | N193: 0 | O193: 19.1 | P193: 16 | Q193: -7.6 | R193: 18.6 | S193: 14 | T193: -9.6 | U193: 907.3 | V193: 19.1 | W193: 16 | X193: -7.6 | Y193: 19.3 | Z193: 18.5 | AA193: 5.1 | AB193: 52.4
A194: 120123 | B194: 15 | C194: 16 | D194: 8 | E194: 18.6 | F194: 14 | G194: -9.5 | H194: 907 | I194: 9 | J194: 292 | K194: 27 | L194: 0 | M194: 0 | N194: 0 | O194: 19.1 | P194: 15 | Q194: -7.8 | R194: 18.6 | S194: 14 | T194: -9.6 | U194: 907.3 | V194: 19.1 | W194: 16 | X194: -7.6 | Y194: 19.3 | Z194: 18.5 | AA194: 5.1 | AB194: 52.4
A195: 120123 | B195: 15 | C195: 16 | D195: 13 | E195: 18.6 | F195: 14 | G195: -9.5 | H195: 907.1 | I195: 9 | J195: 292 | K195: 27 | L195: 0 | M195: 0 | N195: 0 | O195: 19.1 | P195: 15 | Q195: -8 | R195: 18.6 | S195: 14 | T195: -9.6 | U195: 907.3 | V195: 19.1 | W195: 16 | X195: -7.6 | Y195: 19.3 | Z195: 18.5 | AA195: 5.1 | AB195: 52.4
A196: 120123 | B196: 15 | C196: 16 | D196: 18 | E196: 18.6 | F196: 14 | G196: -9.4 | H196: 907 | I196: 9 | J196: 292 | K196: 27 | L196: 0 | M196: 0 | N196: 0 | O196: 19.1 | P196: 15 | Q196: -7.9 | R196: 18.6 | S196: 14 | T196: -9.6 | U196: 907.3 | V196: 19.1 | W196: 16 | X196: -7.6 | Y196: 19.3 | Z196: 18.5 | AA196: 5.1 | AB196: 52.4
A197: 120123 | B197: 15 | C197: 16 | D197: 24 | E197: 18.6 | F197: 14 | G197: -9.8 | H197: 907 | I197: 9 | J197: 292 | K197: 27 | L197: 0 | M197: 0 | N197: 0 | O197: 19.1 | P197: 15 | Q197: -7.9 | R197: 18.6 | S197: 14 | T197: -9.6 | U197: 907.3 | V197: 19.1 | W197: 16 | X197: -7.6 | Y197: 19.3 | Z197: 18.5 | AA197: 5.1 | AB197: 52.4
A198: 120123 | B198: 15 | C198: 16 | D198: 28 | E198: 18.6 | F198: 14 | G198: -9.5 | H198: 907.1 | I198: 9 | J198: 292 | K198: 27 | L198: 0 | M198: 0 | N198: 0 | O198: 19.1 | P198: 15 | Q198: -8 | R198: 18.6 | S198: 14 | T198: -9.6 | U198: 907.3 | V198: 19.1 | W198: 16 | X198: -7.6 | Y198: 19.3 | Z198: 18.5 | AA198: 5.1 | AB198: 52.4
A199: 120123 | B199: 15 | C199: 16 | D199: 33 | E199: 18.6 | F199: 14 | G199: -9.5 | H199: 907 | I199: 9 | J199: 292 | K199: 27 | L199: 0 | M199: 0 | N199: 0 | O199: 19.1 | P199: 15 | Q199: -7.9 | R199: 18.6 | S199: 14 | T199: -9.6 | U199: 907.3 | V199: 19.1 | W199: 16 | X199: -7.6 | Y199: 19.3 | Z199: 18.5 | AA199: 5.1 | AB199: 52.4
A200: 120123 | B200: 15 | C200: 16 | D200: 38 | E200: 18.6 | F200: 14 | G200: -9.4 | H200: 907 | I200: 9 | J200: 282 | K200: 27 | L200: 0 | M200: 0 | N200: 0 | O200: 19.1 | P200: 16 | Q200: -7.6 | R200: 18.6 | S200: 14 | T200: -9.6 | U200: 907.3 | V200: 19.1 | W200: 16 | X200: -7.6 | Y200: 19.3 | Z200: 18.5 | AA200: 5.1 | AB200: 52.4
... 2050 more rows

Sheet Sheet2

Sheet Sheet3
